Department Family,Entity,Date Paid,Expense Type,Expense Area,Supplier,Transaction Number,Amount (�),Supplier VAT Registration Number
BEIS,Met Office,2020-08-05,11 SERVICES,GOVERNMENT SERVICES,ECMWF,21585,31499.52,NOTVATREG
BEIS,Met Office,2020-08-05,11 SERVICES,GOVERNMENT SERVICES,ECMWF,21588,29796.84,NOTVATREG
BEIS,Met Office,2020-08-05,11 SERVICES,GOVERNMENT SERVICES,ECMWF,21589,31499.52,NOTVATREG
BEIS,Met Office,2020-08-05,11 SERVICES,GOVERNMENT SERVICES,ECMWF,21595,31365.1,NOTVATREG
BEIS,Met Office,2020-08-05,11 SERVICES,GOVERNMENT SERVICES,ECMWF,21599,31499.52,NOTVATREG
BEIS,Met Office,2020-08-05,11 SERVICES,GOVERNMENT SERVICES,ECMWF,21601,31499.52,NOTVATREG
BEIS,Met Office,2020-08-05,11 SERVICES,OPERATIONS,COLLECTE LOCALISATION SATELLITES (C.L.S.),21603,6645.82,FR95338034390
BEIS,Met Office,2020-08-05,11 SERVICES,OPERATIONS,COLLECTE LOCALISATION SATELLITES (C.L.S.),21604,220.45,FR95338034390
BEIS,Met Office,2020-08-05,11 SERVICES,OPERATIONS,COLLECTE LOCALISATION SATELLITES (C.L.S.),21605,6773.81,FR95338034390
BEIS,Met Office,2020-08-05,11 SERVICES,OPERATIONS,COLLECTE LOCALISATION SATELLITES (C.L.S.),21606,53.77,FR95338034390
BEIS,Met Office,2020-08-05,11 SERVICES,GOVERNMENT SERVICES,ECMWF,21607,31499.52,NOTVATREG
BEIS,Met Office,2020-08-05,11 SERVICES,GOVERNMENT SERVICES,ECMWF,21611,31499.52,NOTVATREG
BEIS,Met Office,2020-08-05,11 SERVICES,GOVERNMENT SERVICES,ECMWF,21618,31499.52,NOTVATREG
BEIS,Met Office,2020-08-05,11 SERVICES,GOVERNMENT SERVICES,ECMWF,21622,31499.52,NOTVATREG
BEIS,Met Office,2020-08-05,11 SERVICES,GOVERNMENT SERVICES,ECMWF,21627,31499.52,NOTVATREG
BEIS,Met Office,2020-08-05,11 SERVICES,GOVERNMENT SERVICES,ECMWF,21628,29796.84,NOTVATREG
BEIS,Met Office,2020-08-05,11 SERVICES,GOVERNMENT SERVICES,ECMWF,21632,31365.1,NOTVATREG
BEIS,Met Office,2020-08-05,11 SERVICES,OPERATIONS,"EUTELSAT MADERIA, UNIPESSOAL LDA",21635,2329.08,PT511283733
BEIS,Met Office,2020-08-05,12 INTERNATIONAL,OPERATIONS,EUROPEAN METEOROLOGICAL SOCIETY,21636,896.15,-
BEIS,Met Office,2020-08-05,11 SERVICES,CHIEF FINANCIAL OFFICER,TELIA FINLAND OYJ,21693,162.54,FI14756079
BEIS,Met Office,2020-08-05,11 SERVICES,SCIENCE,National Oceanography Centre,21700,39700.96,GB 338 5487 64
BEIS,Met Office,2020-08-05,11 SERVICES,SCIENCE,NIWA,443100,61250,GST059456466
BEIS,Met Office,2020-08-05,11 SERVICES,GOVERNMENT SERVICES,KENYA METEOROLOGICAL DEPARTMENT,443619,6837.06,-
BEIS,Met Office,2020-08-05,11 SERVICES,GOVERNMENT SERVICES,KENYA METEOROLOGICAL DEPARTMENT,443619,3262.94,-
BEIS,Met Office,2020-08-05,11 SERVICES,TECHNOLOGY,BLOOMREACH B.V.,444325,1978.85,NL815260076B01
BEIS,Met Office,2020-08-05,12 INTERNATIONAL,OPERATIONS,SPREP,9854,40382.83,-
BEIS,Met Office,2020-08-05,11 SERVICES,TECHNOLOGY,AMAZON WEB SERVICES INC.,9856,1297.82,N/A
BEIS,Met Office,2020-08-05,11 SERVICES,TECHNOLOGY,AMAZON WEB SERVICES INC.,9868,12114.85,N/A
BEIS,Met Office,2020-08-05,11 SERVICES,TECHNOLOGY,AMAZON WEB SERVICES INC.,9869,132.06,N/A
BEIS,Met Office,2020-08-05,11 SERVICES,TECHNOLOGY,AMAZON WEB SERVICES INC.,9870,86875.61,N/A
BEIS,Met Office,2020-08-05,11 SERVICES,GOVERNMENT SERVICES,"INTELLOVATIONS, LLC",9883,1793.5,-
BEIS,Met Office,2020-08-05,12 INTERNATIONAL,OPERATIONS,REDACTED PERSONAL DATA,9880,2729.24,-
BEIS,Met Office,2020-08-06,11 SERVICES,SUPERCOMPUTING,University College London,435881,-9166.66,524371168
BEIS,Met Office,2020-08-06,13 MISCELLANEOUS,SCIENCE,University College London,436953,1687.5,524371168
BEIS,Met Office,2020-08-06,CASH AT BANK AND IN HAND,OTHER,BAE SYSTEMS APPLIED INTELLIGENCE LIMITED,441588,21760.85,GB641407169
BEIS,Met Office,2020-08-06,11 SERVICES,TECHNOLOGY,NTT DATA UK CONSULTING AND IT SOLUTIONS LIMIT,442421,13379.2,159334590
BEIS,Met Office,2020-08-06,11 SERVICES,TECHNOLOGY,BAE SYSTEMS APPLIED INTELLIGENCE LIMITED,442439,22500,GB641407169
BEIS,Met Office,2020-08-06,CASH AT BANK AND IN HAND,OTHER,BAE SYSTEMS APPLIED INTELLIGENCE LIMITED,443589,33785.81,GB641407169
BEIS,Met Office,2020-08-06,11 SERVICES,GOVERNMENT SERVICES,UK CENTRE FOR ECOLOGY & HYDROLOGY (UKCEH),443895,116812,336940192
BEIS,Met Office,2020-08-06,11 SERVICES,STRATEGIC INVESTMENT,BAE SYSTEMS APPLIED INTELLIGENCE LIMITED,444046,20000.85,GB641407169
BEIS,Met Office,2020-08-06,11 SERVICES,STRATEGIC INVESTMENT,BAE SYSTEMS APPLIED INTELLIGENCE LIMITED,444047,16480.85,GB641407169
BEIS,Met Office,2020-08-06,11 SERVICES,TECHNOLOGY,BAE SYSTEMS APPLIED INTELLIGENCE LIMITED,444053,5000,GB641407169
BEIS,Met Office,2020-08-06,11 SERVICES,TECHNOLOGY,BAE SYSTEMS APPLIED INTELLIGENCE LIMITED,444054,15862.88,GB641407169
BEIS,Met Office,2020-08-06,CASH AT BANK AND IN HAND,OTHER,BAE SYSTEMS APPLIED INTELLIGENCE LIMITED,444062,-33785.81,GB641407169
BEIS,Met Office,2020-08-06,CASH AT BANK AND IN HAND,OTHER,BAE SYSTEMS APPLIED INTELLIGENCE LIMITED,444063,-21760.85,GB641407169
BEIS,Met Office,2020-08-06,STOCK,OPERATIONS,GH ZEAL LTD,444158,17.5,648929087
BEIS,Met Office,2020-08-06,STOCK,OPERATIONS,GH ZEAL LTD,444158,3326.4,648929087
BEIS,Met Office,2020-08-06,11 SERVICES,OPERATIONS,BOC LTD,444181,24314.82,226556555
BEIS,Met Office,2020-08-06,11 SERVICES,TECHNOLOGY,BAE SYSTEMS APPLIED INTELLIGENCE LIMITED,444616,11536.64,GB641407169
BEIS,Met Office,2020-08-06,11 SERVICES,TECHNOLOGY,BAE SYSTEMS APPLIED INTELLIGENCE LIMITED,444735,22500,GB641407169
BEIS,Met Office,2020-08-06,11 SERVICES,TECHNOLOGY,BAE SYSTEMS APPLIED INTELLIGENCE LIMITED,444736,14420.8,GB641407169
BEIS,Met Office,2020-08-06,11 SERVICES,TECHNOLOGY,BAE SYSTEMS APPLIED INTELLIGENCE LIMITED,444741,10094.56,GB641407169
BEIS,Met Office,2020-08-06,11 SERVICES,STRATEGIC INVESTMENT,BAE SYSTEMS APPLIED INTELLIGENCE LIMITED,444742,9680,GB641407169
BEIS,Met Office,2020-08-06,11 SERVICES,TECHNOLOGY,BAE SYSTEMS APPLIED INTELLIGENCE LIMITED,444743,5940,GB641407169
BEIS,Met Office,2020-08-06,11 SERVICES,STRATEGIC INVESTMENT,BAE SYSTEMS APPLIED INTELLIGENCE LIMITED,444744,16720,GB641407169
BEIS,Met Office,2020-08-06,11 SERVICES,TECHNOLOGY,BAE SYSTEMS APPLIED INTELLIGENCE LIMITED,444846,22500,GB641407169
BEIS,Met Office,2020-08-06,08 SOFTWARE LICENCES,TECHNOLOGY,SOFTWAREONE,445044,6750,GB 942 5301 43
BEIS,Met Office,2020-08-06,08 SOFTWARE LICENCES,TECHNOLOGY,SOFTWAREONE,445044,490.5,GB 942 5301 43
BEIS,Met Office,2020-08-06,04 CONTRACTORS,OPERATIONS,HAYS SPECIALIST RECRUITMENT LTD,445064,-255,773695871
BEIS,Met Office,2020-08-06,04 CONTRACTORS,OPERATIONS,HAYS SPECIALIST RECRUITMENT LTD,445065,-255,773695871
BEIS,Met Office,2020-08-06,04 CONTRACTORS,CHIEF FINANCIAL OFFICER,OUTSOURCE UK LIMITED,445069,8692.75,576118722
BEIS,Met Office,2020-08-06,04 CONTRACTORS,CORPORATE,OUTSOURCE UK LIMITED,445070,6000,576118722
BEIS,Met Office,2020-08-06,04 CONTRACTORS,STRATEGIC INVESTMENT,OUTSOURCE UK LIMITED,445071,9435.8,576118722
BEIS,Met Office,2020-08-06,04 CONTRACTORS,TECHNOLOGY,OUTSOURCE UK LIMITED,445072,5801.12,576118722
BEIS,Met Office,2020-08-06,04 CONTRACTORS,TECHNOLOGY,OUTSOURCE UK LIMITED,445073,8032.32,576118722
BEIS,Met Office,2020-08-06,04 CONTRACTORS,TECHNOLOGY,OUTSOURCE UK LIMITED,445074,2875,576118722
BEIS,Met Office,2020-08-06,04 CONTRACTORS,TECHNOLOGY,OUTSOURCE UK LIMITED,445075,9841.05,576118722
BEIS,Met Office,2020-08-06,04 CONTRACTORS,CHIEF FINANCIAL OFFICER,OUTSOURCE UK LIMITED,445076,8924.6,576118722
BEIS,Met Office,2020-08-06,04 CONTRACTORS,TECHNOLOGY,OUTSOURCE UK LIMITED,445077,6032.55,576118722
BEIS,Met Office,2020-08-06,04 CONTRACTORS,TECHNOLOGY,OUTSOURCE UK LIMITED,445079,8292.24,576118722
BEIS,Met Office,2020-08-06,04 CONTRACTORS,TECHNOLOGY,OUTSOURCE UK LIMITED,445080,10153.8,576118722
BEIS,Met Office,2020-08-06,04 CONTRACTORS,TECHNOLOGY,OUTSOURCE UK LIMITED,445081,8205.2,576118722
BEIS,Met Office,2020-08-06,04 CONTRACTORS,TECHNOLOGY,OUTSOURCE UK LIMITED,445082,6537.6,576118722
BEIS,Met Office,2020-08-06,04 CONTRACTORS,OPERATIONS,OUTSOURCE UK LIMITED,445083,8516.16,576118722
BEIS,Met Office,2020-08-06,04 CONTRACTORS,TECHNOLOGY,OUTSOURCE UK LIMITED,445084,17000,576118722
BEIS,Met Office,2020-08-06,04 CONTRACTORS,CORPORATE,OUTSOURCE UK LIMITED,445085,698.92,576118722
BEIS,Met Office,2020-08-06,04 CONTRACTORS,STRATEGIC INVESTMENT,QUALSERV CONSULTING LTD,445086,1750,719067718
BEIS,Met Office,2020-08-06,04 CONTRACTORS,TECHNOLOGY,OUTSOURCE UK LIMITED,445088,1591.4,576118722
BEIS,Met Office,2020-08-06,04 CONTRACTORS,CORPORATE,OUTSOURCE UK LIMITED,445089,5241.9,576118722
BEIS,Met Office,2020-08-06,04 CONTRACTORS,TECHNOLOGY,OUTSOURCE UK LIMITED,445090,7978.6,576118722
BEIS,Met Office,2020-08-06,04 CONTRACTORS,CHIEF FINANCIAL OFFICER,OUTSOURCE UK LIMITED,445091,8492.4,576118722
BEIS,Met Office,2020-08-06,04 CONTRACTORS,TECHNOLOGY,OUTSOURCE UK LIMITED,445092,5163.06,576118722
BEIS,Met Office,2020-08-06,04 CONTRACTORS,TECHNOLOGY,OUTSOURCE UK LIMITED,445093,11092.4,576118722
BEIS,Met Office,2020-08-06,04 CONTRACTORS,TECHNOLOGY,OUTSOURCE UK LIMITED,445094,3250,576118722
BEIS,Met Office,2020-08-06,13 MISCELLANEOUS,CHIEF FINANCIAL OFFICER,CANON UK LTD,445095,208.6,523797128
BEIS,Met Office,2020-08-06,13 MISCELLANEOUS,CHIEF FINANCIAL OFFICER,CANON UK LTD,445095,16.2,523797128
BEIS,Met Office,2020-08-06,13 MISCELLANEOUS,CHIEF FINANCIAL OFFICER,CANON UK LTD,445095,37.81,523797128
BEIS,Met Office,2020-08-06,13 MISCELLANEOUS,CHIEF FINANCIAL OFFICER,CANON UK LTD,445095,59.79,523797128
BEIS,Met Office,2020-08-06,04 CONTRACTORS,CORPORATE,WA CONSULTANTS LTD,445150,8764.2,876328977
BEIS,Met Office,2020-08-06,06 ACCOMMODATION,CHIEF FINANCIAL OFFICER,OCS Group UK Limited,445151,0.06,GB238034379
BEIS,Met Office,2020-08-06,06 ACCOMMODATION,CHIEF FINANCIAL OFFICER,OCS Group UK Limited,445151,14502.85,GB238034379
BEIS,Met Office,2020-08-06,06 ACCOMMODATION,CHIEF FINANCIAL OFFICER,OCS Group UK Limited,445151,109195.33,GB238034379
BEIS,Met Office,2020-08-06,04 CONTRACTORS,TECHNOLOGY,QUALSERV CONSULTING LTD,445154,8133.72,719067718
BEIS,Met Office,2020-08-06,13 MISCELLANEOUS,CHIEF FINANCIAL OFFICER,SELECTA UK LTD,445155,127.8,581705924
BEIS,Met Office,2020-08-06,03 STAFF COSTS T&S,GOVERNMENT SERVICES,FCDO,445156,1090.47,888813560
BEIS,Met Office,2020-08-06,11 SERVICES,GOVERNMENT SERVICES,FCDO,445156,1916.41,888813560
BEIS,Met Office,2020-08-06,13 MISCELLANEOUS,CHIEF FINANCIAL OFFICER,POSTURITE (UK) LTD,445157,161.17,583565114
BEIS,Met Office,2020-08-06,04 CONTRACTORS,TECHNOLOGY,HAYS SPECIALIST RECRUITMENT LTD,445158,558.71,773695871
BEIS,Met Office,2020-08-06,04 CONTRACTORS,CORPORATE,HAYS SPECIALIST RECRUITMENT LTD,445159,634.67,773695871
BEIS,Met Office,2020-08-06,04 CONTRACTORS,OPERATIONS,HAYS SPECIALIST RECRUITMENT LTD,445160,731,773695871
BEIS,Met Office,2020-08-06,03 STAFF COSTS T&S,CHIEF FINANCIAL OFFICER,LONDON UNIVERSITIES PURCHASING CONSORTIUM,445162,-708.75,-
BEIS,Met Office,2020-08-06,11 SERVICES,GOVERNMENT SERVICES,PROLIFICS INC,445163,15675,GB 639 2102 53
BEIS,Met Office,2020-08-06,04 CONTRACTORS,GOVERNMENT SERVICES,HAYS SPECIALIST RECRUITMENT LTD,445164,183.08,773695871
BEIS,Met Office,2020-08-06,04 CONTRACTORS,TECHNOLOGY,HAYS SPECIALIST RECRUITMENT LTD,445165,573.8,773695871
BEIS,Met Office,2020-08-06,10 EQUIPMENT MAINTENANCE,OPERATIONS,QUASAR MICROWAVE TECHNOLOGY LTD,445166,331.89,209385203
BEIS,Met Office,2020-08-06,11 SERVICES,CORPORATE,YCN LTD,445168,4000,802518947
BEIS,Met Office,2020-08-06,04 CONTRACTORS,TECHNOLOGY,QUALSERV CONSULTING LTD,445169,9258.3,719067718
BEIS,Met Office,2020-08-06,04 CONTRACTORS,GOVERNMENT SERVICES,QUALSERV CONSULTING LTD,445171,9000,719067718
BEIS,Met Office,2020-08-06,04 CONTRACTORS,STRATEGIC INVESTMENT,QUALSERV CONSULTING LTD,445172,9907.2,719067718
BEIS,Met Office,2020-08-06,04 CONTRACTORS,TECHNOLOGY,QUALSERV CONSULTING LTD,445173,6766,719067718
BEIS,Met Office,2020-08-06,04 CONTRACTORS,CORPORATE,QUALSERV CONSULTING LTD,445174,8325,719067718
BEIS,Met Office,2020-08-06,04 CONTRACTORS,CHIEF FINANCIAL OFFICER,QUALSERV CONSULTING LTD,445175,6962.8,719067718
BEIS,Met Office,2020-08-06,04 CONTRACTORS,STRATEGIC INVESTMENT,QUALSERV CONSULTING LTD,445176,6750,719067718
BEIS,Met Office,2020-08-06,04 CONTRACTORS,STRATEGIC INVESTMENT,QUALSERV CONSULTING LTD,445176,2241.1,719067718
BEIS,Met Office,2020-08-06,04 CONTRACTORS,OPERATIONS,QUALSERV CONSULTING LTD,445177,6288,719067718
BEIS,Met Office,2020-08-06,04 CONTRACTORS,TECHNOLOGY,QUALSERV CONSULTING LTD,445178,11868,719067718
BEIS,Met Office,2020-08-06,04 CONTRACTORS,GOVERNMENT SERVICES,WA CONSULTANTS LTD,445179,2178,876328977
BEIS,Met Office,2020-08-06,04 CONTRACTORS,GOVERNMENT SERVICES,WA CONSULTANTS LTD,445180,906,876328977
BEIS,Met Office,2020-08-06,04 CONTRACTORS,STRATEGIC INVESTMENT,WA CONSULTANTS LTD,445181,8360,876328977
BEIS,Met Office,2020-08-06,11 SERVICES,BUSINESS GROUP,NATS (EN ROUTE) PLC,445182,2028,440379456004
BEIS,Met Office,2020-08-06,04 CONTRACTORS,TECHNOLOGY,QUALSERV CONSULTING LTD,445183,9771.8,719067718
BEIS,Met Office,2020-08-06,04 CONTRACTORS,STRATEGIC INVESTMENT,QUALSERV CONSULTING LTD,445184,9000,719067718
BEIS,Met Office,2020-08-06,04 CONTRACTORS,STRATEGIC INVESTMENT,QUALSERV CONSULTING LTD,445185,2353.86,719067718
BEIS,Met Office,2020-08-06,04 CONTRACTORS,STRATEGIC INVESTMENT,QUALSERV CONSULTING LTD,445185,4602.54,719067718
BEIS,Met Office,2020-08-06,11 SERVICES,BUSINESS GROUP,NATS (EN ROUTE) PLC,445187,922,440379456004
BEIS,Met Office,2020-08-06,11 SERVICES,BUSINESS GROUP,NATS (EN ROUTE) PLC,445188,922,440379456004
BEIS,Met Office,2020-08-06,11 SERVICES,BUSINESS GROUP,NATS (EN ROUTE) PLC,445189,922,440379456004
BEIS,Met Office,2020-08-06,PLANT AND EQUIPMENT,CHIEF FINANCIAL OFFICER,CBRE MANAGED SERVICES LTD,445190,78573.54,853936883
BEIS,Met Office,2020-08-06,PLANT AND EQUIPMENT,CHIEF FINANCIAL OFFICER,CBRE MANAGED SERVICES LTD,445190,1785.86,853936883
BEIS,Met Office,2020-08-06,06 ACCOMMODATION,CHIEF FINANCIAL OFFICER,CBRE MANAGED SERVICES LTD,445191,8777.24,853936883
BEIS,Met Office,2020-08-06,06 ACCOMMODATION,CHIEF FINANCIAL OFFICER,CBRE MANAGED SERVICES LTD,445192,142096.1,853936883
BEIS,Met Office,2020-08-06,11 SERVICES,SCIENCE,University College London,445200,25000,524371168
BEIS,Met Office,2020-08-06,06 ACCOMMODATION,CHIEF FINANCIAL OFFICER,THE CLEANING CREW COMPANY,445201,621,343579772
BEIS,Met Office,2020-08-06,08 SOFTWARE LICENCES,CHIEF FINANCIAL OFFICER,CEMAR,445202,500,915042161
BEIS,Met Office,2020-08-06,07 EQUIPMENT,SCIENCE,CAMTEC ENGINEERING LTD,445203,135,527033861
BEIS,Met Office,2020-08-06,11 SERVICES,GOVERNMENT SERVICES,University Of Leeds,445204,3163.68,613451470
BEIS,Met Office,2020-08-06,04 CONTRACTORS,SCIENCE,WA CONSULTANTS LTD,445207,4360,876328977
BEIS,Met Office,2020-08-06,04 CONTRACTORS,OPERATIONS,WA CONSULTANTS LTD,445208,13062.5,876328977
BEIS,Met Office,2020-08-06,04 CONTRACTORS,CHIEF FINANCIAL OFFICER,WA CONSULTANTS LTD,445209,5786,876328977
BEIS,Met Office,2020-08-06,11 SERVICES,OPERATIONS,SOFTCAT LTD,445210,321.24,491848503
BEIS,Met Office,2020-08-06,04 CONTRACTORS,TECHNOLOGY,WA CONSULTANTS LTD,445211,9693.54,876328977
BEIS,Met Office,2020-08-06,04 CONTRACTORS,TECHNOLOGY,WA CONSULTANTS LTD,445212,1615.59,876328977
BEIS,Met Office,2020-08-06,04 CONTRACTORS,SCIENCE,WA CONSULTANTS LTD,445213,4905,876328977
BEIS,Met Office,2020-08-06,04 CONTRACTORS,TECHNOLOGY,WA CONSULTANTS LTD,445214,11900,876328977
BEIS,Met Office,2020-08-06,04 CONTRACTORS,TECHNOLOGY,WA CONSULTANTS LTD,445215,13451.25,876328977
BEIS,Met Office,2020-08-06,04 CONTRACTORS,CHIEF FINANCIAL OFFICER,WA CONSULTANTS LTD,445216,9361,876328977
BEIS,Met Office,2020-08-06,04 CONTRACTORS,CHIEF FINANCIAL OFFICER,WA CONSULTANTS LTD,445218,8702.5,876328977
BEIS,Met Office,2020-08-06,04 CONTRACTORS,STRATEGIC INVESTMENT,WA CONSULTANTS LTD,445219,10965.22,876328977
BEIS,Met Office,2020-08-06,04 CONTRACTORS,TECHNOLOGY,WA CONSULTANTS LTD,445220,11250,876328977
BEIS,Met Office,2020-08-06,04 CONTRACTORS,TECHNOLOGY,WA CONSULTANTS LTD,445221,13080,876328977
BEIS,Met Office,2020-08-06,04 CONTRACTORS,TECHNOLOGY,WA CONSULTANTS LTD,445222,12500,876328977
BEIS,Met Office,2020-08-06,11 SERVICES,OPERATIONS,WORLDPAY LTD,445224,25.05,991280207
BEIS,Met Office,2020-08-06,11 SERVICES,CHIEF FINANCIAL OFFICER,WEBEX COMMUNICATIONS UK LTD,445228,213.57,815974302
BEIS,Met Office,2020-08-06,11 SERVICES,OPERATIONS,CATALYST IT,445230,1301.87,978169262
BEIS,Met Office,2020-08-06,06 ACCOMMODATION,CHIEF FINANCIAL OFFICER,ANGLIAN WATER BUSINESS NATIONAL LTD,445233,31.44,51406002
BEIS,Met Office,2020-08-06,06 ACCOMMODATION,CHIEF FINANCIAL OFFICER,ANGLIAN WATER BUSINESS NATIONAL LTD,445234,9.84,51406002
BEIS,Met Office,2020-08-06,06 ACCOMMODATION,CHIEF FINANCIAL OFFICER,ANGLIAN WATER BUSINESS NATIONAL LTD,445235,46.05,51406002
BEIS,Met Office,2020-08-06,04 CONTRACTORS,TECHNOLOGY,WA CONSULTANTS LTD,445238,8727.45,876328977
BEIS,Met Office,2020-08-06,04 CONTRACTORS,TECHNOLOGY,WA CONSULTANTS LTD,445239,5818.3,876328977
BEIS,Met Office,2020-08-06,04 CONTRACTORS,TECHNOLOGY,WA CONSULTANTS LTD,445240,15600,876328977
BEIS,Met Office,2020-08-06,08 SOFTWARE LICENCES,TECHNOLOGY,PRESENTATION CARTOGRAPHY LTD,445242,6600,-
BEIS,Met Office,2020-08-06,08 SOFTWARE LICENCES,TECHNOLOGY,PRESENTATION CARTOGRAPHY LTD,445242,38000,-
BEIS,Met Office,2020-08-06,08 SOFTWARE LICENCES,TECHNOLOGY,PRESENTATION CARTOGRAPHY LTD,445242,7000,-
BEIS,Met Office,2020-08-06,11 SERVICES,CHIEF FINANCIAL OFFICER,LICENCE BUREAU LTD,445243,178.6,820219467
BEIS,Met Office,2020-08-06,11 SERVICES,TECHNOLOGY,SSE CONTRACTING LTD,445244,10137.45,570118464
BEIS,Met Office,2020-08-06,11 SERVICES,OPERATIONS,BOC LTD,445245,4938.59,226556555
BEIS,Met Office,2020-08-06,11 SERVICES,TECHNOLOGY,UKCLOUD LTD,445246,1658.4,172647982
BEIS,Met Office,2020-08-06,04 CONTRACTORS,STRATEGIC INVESTMENT,QUALSERV CONSULTING LTD,445247,9000,719067718
BEIS,Met Office,2020-08-06,11 SERVICES,CHIEF FINANCIAL OFFICER,Siemens Plc,445248,24.57,GB 927 317 516
BEIS,Met Office,2020-08-06,03 STAFF COSTS T&S,CHIEF FINANCIAL OFFICER,LONDON UNIVERSITIES PURCHASING CONSORTIUM,445251,4725,-
BEIS,Met Office,2020-08-06,04 CONTRACTORS,SUPERCOMPUTING,WA CONSULTANTS LTD,445252,18652,876328977
BEIS,Met Office,2020-08-06,04 CONTRACTORS,TECHNOLOGY,WA CONSULTANTS LTD,445254,12360,876328977
BEIS,Met Office,2020-08-06,13 MISCELLANEOUS,CORPORATE,HEALTH MANAGEMENT LTD,445255,1976.16,792250621
BEIS,Met Office,2020-08-06,11 SERVICES,CORPORATE,EQUINITI ICS LTD,445256,316.66,915967778
BEIS,Met Office,2020-08-06,11 SERVICES,CORPORATE,EQUINITI ICS LTD,445257,6846,915967778
BEIS,Met Office,2020-08-06,11 SERVICES,TECHNOLOGY,WIREFAST LTD,445260,116.07,749536001
BEIS,Met Office,2020-08-06,08 SOFTWARE LICENCES,TECHNOLOGY,COMPUTACENTER (UK) LTD,445262,15456.08,490334648
BEIS,Met Office,2020-08-06,11 SERVICES,TECHNOLOGY,WIREFAST LTD,445263,3569.43,749536001
BEIS,Met Office,2020-08-06,08 SOFTWARE LICENCES,TECHNOLOGY,IBM UNITED KINGDOM LTD,445264,9327.7,107328000
BEIS,Met Office,2020-08-06,08 SOFTWARE LICENCES,TECHNOLOGY,GOOGLE IRELAND LTD,445269,37.93,6388047V
BEIS,Met Office,2020-08-06,03 STAFF COSTS T&S,CHIEF FINANCIAL OFFICER,ENTERPRISE RENT A CAR UK LTD,445274,858.63,215557314
BEIS,Met Office,2020-08-06,03 STAFF COSTS T&S,CHIEF FINANCIAL OFFICER,ENTERPRISE RENT A CAR UK LTD,445275,291.24,215557314
BEIS,Met Office,2020-08-06,04 CONTRACTORS,TECHNOLOGY,WA CONSULTANTS LTD,445277,8242.67,876328977
BEIS,Met Office,2020-08-06,04 CONTRACTORS,TECHNOLOGY,WA CONSULTANTS LTD,445278,2716.94,876328977
BEIS,Met Office,2020-08-06,06 ACCOMMODATION,OPERATIONS,INMARSAT SOLUTIONS (CANADA) INC,445282,745.95,766144223
BEIS,Met Office,2020-08-06,06 ACCOMMODATION,OPERATIONS,INMARSAT SOLUTIONS (CANADA) INC,445283,13.28,766144223
BEIS,Met Office,2020-08-06,03 STAFF COSTS T&S,OPERATIONS,FALKLAND ISLAND COMPANY LTD,445284,700,N/A
BEIS,Met Office,2020-08-06,03 STAFF COSTS T&S,OPERATIONS,FALKLAND ISLAND COMPANY LTD,445285,-606.9,N/A
BEIS,Met Office,2020-08-06,11 SERVICES,STRATEGIC INVESTMENT,ELASTICSEARCH LTD,445287,4414.67,155790484
BEIS,Met Office,2020-08-06,04 CONTRACTORS,TECHNOLOGY,OUTSOURCE UK LIMITED,445288,9750,576118722
BEIS,Met Office,2020-08-06,04 CONTRACTORS,TECHNOLOGY,OUTSOURCE UK LIMITED,445289,2231.2,576118722
BEIS,Met Office,2020-08-06,04 CONTRACTORS,CHIEF FINANCIAL OFFICER,OUTSOURCE UK LIMITED,445290,8505.15,576118722
BEIS,Met Office,2020-08-06,04 CONTRACTORS,TECHNOLOGY,OUTSOURCE UK LIMITED,445291,6300,576118722
BEIS,Met Office,2020-08-06,04 CONTRACTORS,STRATEGIC INVESTMENT,OUTSOURCE UK LIMITED,445292,5000,576118722
BEIS,Met Office,2020-08-06,04 CONTRACTORS,TECHNOLOGY,OUTSOURCE UK LIMITED,445293,6693.6,576118722
BEIS,Met Office,2020-08-06,04 CONTRACTORS,STRATEGIC INVESTMENT,OUTSOURCE UK LIMITED,445294,7384.65,576118722
BEIS,Met Office,2020-08-06,04 CONTRACTORS,STRATEGIC INVESTMENT,OUTSOURCE UK LIMITED,445295,4451.58,576118722
BEIS,Met Office,2020-08-06,11 SERVICES,OPERATIONS,BOC LTD,445297,-5,226556555
BEIS,Met Office,2020-08-06,04 CONTRACTORS,GOVERNMENT SERVICES,JOBSEEKERS RECRUITMENT SERVICES LTD,445298,663.78,130 1297 14
BEIS,Met Office,2020-08-06,04 CONTRACTORS,OPERATIONS,JOBSEEKERS RECRUITMENT SERVICES LTD,445299,577.2,130 1297 14
BEIS,Met Office,2020-08-06,04 CONTRACTORS,GOVERNMENT SERVICES,JOBSEEKERS RECRUITMENT SERVICES LTD,445300,848.04,130 1297 14
BEIS,Met Office,2020-08-06,04 CONTRACTORS,GOVERNMENT SERVICES,JOBSEEKERS RECRUITMENT SERVICES LTD,445301,663.78,130 1297 14
BEIS,Met Office,2020-08-06,04 CONTRACTORS,GOVERNMENT SERVICES,JOBSEEKERS RECRUITMENT SERVICES LTD,445302,859.5,130 1297 14
BEIS,Met Office,2020-08-06,04 CONTRACTORS,GOVERNMENT SERVICES,JOBSEEKERS RECRUITMENT SERVICES LTD,445303,403.65,130 1297 14
BEIS,Met Office,2020-08-06,11 SERVICES,OPERATIONS,BOC LTD,445328,-95.71,226556555
BEIS,Met Office,2020-08-06,06 ACCOMMODATION,CHIEF FINANCIAL OFFICER,REDACTED PERSONAL DATA,445087,10384.35,617358920
BEIS,Met Office,2020-08-06,06 ACCOMMODATION,CHIEF FINANCIAL OFFICER,REDACTED PERSONAL DATA,445161,897,426523462
BEIS,Met Office,2020-08-06,FIXTURE & FITTINGS,CHIEF FINANCIAL OFFICER,REDACTED PERSONAL DATA,445217,8900,426523462
BEIS,Met Office,2020-08-12,STOCK,OPERATIONS,VAISALA OYJ,21524,0,FI01244162
BEIS,Met Office,2020-08-12,STOCK,OPERATIONS,VAISALA OYJ,21524,21907.77,FI01244162
BEIS,Met Office,2020-08-12,STOCK,OPERATIONS,VAISALA OYJ,21562,0,FI01244162
BEIS,Met Office,2020-08-12,STOCK,OPERATIONS,VAISALA OYJ,21562,0,FI01244162
BEIS,Met Office,2020-08-12,STOCK,OPERATIONS,VAISALA OYJ,21562,47780.63,FI01244162
BEIS,Met Office,2020-08-12,STOCK,OPERATIONS,VAISALA OYJ,21562,12309.57,FI01244162
BEIS,Met Office,2020-08-12,STOCK,OPERATIONS,VAISALA OYJ,21563,-32104.83,FI01244162
BEIS,Met Office,2020-08-12,STOCK,OPERATIONS,VAISALA OYJ,21564,-27985.38,FI01244162
BEIS,Met Office,2020-08-12,STOCK,OPERATIONS,VAISALA OYJ,21565,0,FI01244162
BEIS,Met Office,2020-08-12,STOCK,OPERATIONS,VAISALA OYJ,21565,66881.79,FI01244162
BEIS,Met Office,2020-08-12,13 MISCELLANEOUS,CHIEF FINANCIAL OFFICER,DEMSTAR BUSINESS SOLUTIONS LTD,21637,237.33,10156145J
BEIS,Met Office,2020-08-12,07 EQUIPMENT,TECHNOLOGY,APC TECHNOLOGY GROUP PLC,21655,2552.47,GB 373 584 720
BEIS,Met Office,2020-08-12,11 SERVICES,GOVERNMENT SERVICES,DELTARES,21698,50935.29,NL800097476B01
BEIS,Met Office,2020-08-12,11 SERVICES,SCIENCE,NIWA,445199,2070.39,GST059456466
BEIS,Met Office,2020-08-12,08 SOFTWARE LICENCES,TECHNOLOGY,"PHOENIX SOFTWARE INTERNATIONAL, INC",9663,7406.66,-
BEIS,Met Office,2020-08-12,11 SERVICES,GOVERNMENT SERVICES,MACITECHSY SOLUTIONS,9703,2794.21,-
BEIS,Met Office,2020-08-12,11 SERVICES,OPERATIONS,"AXYS TECHNOLOGIES, INC",9882,116.97,-
BEIS,Met Office,2020-08-13,11 SERVICES,SCIENCE,JB INTERNATIONAL TRAINING LTD,441393,9375,158513304
BEIS,Met Office,2020-08-13,11 SERVICES,SCIENCE,JB INTERNATIONAL TRAINING LTD,441393,9375,158513304
BEIS,Met Office,2020-08-13,11 SERVICES,SCIENCE,JB INTERNATIONAL TRAINING LTD,441393,9375,158513304
BEIS,Met Office,2020-08-13,INFORMATION TECHNOLOGY,TECHNOLOGY,COMPUTACENTER (UK) LTD,444064,6186.3,490334648
BEIS,Met Office,2020-08-13,INFORMATION TECHNOLOGY,TECHNOLOGY,COMPUTACENTER (UK) LTD,444064,24050.28,490334648
BEIS,Met Office,2020-08-13,11 SERVICES,TECHNOLOGY,LRQA LTD,444633,11880,821176647
BEIS,Met Office,2020-08-13,04 CONTRACTORS,STRATEGIC INVESTMENT,OUTSOURCE UK LIMITED,444753,9353.89,576118722
BEIS,Met Office,2020-08-13,06 ACCOMMODATION,CHIEF FINANCIAL OFFICER,BPC ENERGY LTD,444857,1368,177265088
BEIS,Met Office,2020-08-13,11 SERVICES,GOVERNMENT SERVICES,University Of Reading,444858,46773.88,200012659
BEIS,Met Office,2020-08-13,08 SOFTWARE LICENCES,TECHNOLOGY,DILIGENT BOARDBOOKS LIMITED,444874,30408.39,929451011
BEIS,Met Office,2020-08-13,11 SERVICES,TECHNOLOGY,NEXUS OPEN SYSTEMS LTD,445025,1700,723221673
BEIS,Met Office,2020-08-13,11 SERVICES,GOVERNMENT SERVICES,University Of Reading,445195,34235,200012659
BEIS,Met Office,2020-08-13,11 SERVICES,GOVERNMENT SERVICES,University Of Leeds,445206,48996,613451470
BEIS,Met Office,2020-08-13,11 SERVICES,OPERATIONS,VOLKSWAGEN GROUP LEASING,445229,3697.1,BG745963883
BEIS,Met Office,2020-08-13,11 SERVICES,CORPORATE,HAWK INCENTIVES LTD,445231,13360,238839422
BEIS,Met Office,2020-08-13,11 SERVICES,CORPORATE,HAWK INCENTIVES LTD,445231,668,238839422
BEIS,Met Office,2020-08-13,11 SERVICES,CORPORATE,SWANTECH LOGISTICS LTD,445241,1973.8,769332401
BEIS,Met Office,2020-08-13,11 SERVICES,STRATEGIC INVESTMENT,Esri (Uk) Ltd,445253,2883,787430791
BEIS,Met Office,2020-08-13,11 SERVICES,CHIEF FINANCIAL OFFICER,DIGITAL COMMUNICATIONS SYSTEMS LIMITED,445258,5423.77,GB 556 1971 19
BEIS,Met Office,2020-08-13,11 SERVICES,CHIEF FINANCIAL OFFICER,MITIE SECURITY LTD,445259,1350.3,416706654
BEIS,Met Office,2020-08-13,11 SERVICES,CHIEF FINANCIAL OFFICER,MITIE SECURITY LTD,445261,730,416706654
BEIS,Met Office,2020-08-13,11 SERVICES,GOVERNMENT SERVICES,University Of Reading,445265,-46773.88,200012659
BEIS,Met Office,2020-08-13,11 SERVICES,GOVERNMENT SERVICES,University Of Reading,445266,48224,200012659
BEIS,Met Office,2020-08-13,13 MISCELLANEOUS,CHIEF FINANCIAL OFFICER,ANTRIM HILLS SPRING WATER CO LTD,445267,27,517173455
BEIS,Met Office,2020-08-13,11 SERVICES,SCIENCE,SCIENCE & TECHNOLOGY FACILITIES COUNCIL,445271,37500,618367325
BEIS,Met Office,2020-08-13,PLANT AND EQUIPMENT,OPERATIONS,Trinity House,445272,15915.65,243120414
BEIS,Met Office,2020-08-13,06 ACCOMMODATION,CHIEF FINANCIAL OFFICER,Trinity House,445273,750,243120414
BEIS,Met Office,2020-08-13,11 SERVICES,GOVERNMENT SERVICES,University Of Birmingham,445276,69502,729856187
BEIS,Met Office,2020-08-13,06 ACCOMMODATION,CHIEF FINANCIAL OFFICER,CARDIFF EXECUTIVE CENTRE LTD,445279,2470,864497378
BEIS,Met Office,2020-08-13,06 ACCOMMODATION,CHIEF FINANCIAL OFFICER,ST MODWEN VENTURES LTD,445281,15.94,975081008
BEIS,Met Office,2020-08-13,11 SERVICES,GOVERNMENT SERVICES,ADOPSTAR,445286,1250,115036848
BEIS,Met Office,2020-08-13,05 CONSULTANTS,STRATEGIC INVESTMENT,CMC PARTNERSHIP CONSULTANCY LTD,445304,21735,305803330
BEIS,Met Office,2020-08-13,11 SERVICES,CHIEF FINANCIAL OFFICER,TELEFONICA O2 UK LIMITED,445305,50,778603785
BEIS,Met Office,2020-08-13,04 CONTRACTORS,TECHNOLOGY,WA CONSULTANTS LTD,445332,14000,876328977
BEIS,Met Office,2020-08-13,04 CONTRACTORS,STRATEGIC INVESTMENT,OUTSOURCE UK LIMITED,445333,1969.24,576118722
BEIS,Met Office,2020-08-13,12 INTERNATIONAL,OPERATIONS,MYACORN LTD,445335,8850,-
BEIS,Met Office,2020-08-13,11 SERVICES,OPERATIONS,APPLIED SATELLITE TECHNOLOGY SYSTEMS LTD,445338,139.01,720108683
BEIS,Met Office,2020-08-13,04 CONTRACTORS,STRATEGIC INVESTMENT,WA CONSULTANTS LTD,445339,11297.25,876328977
BEIS,Met Office,2020-08-13,04 CONTRACTORS,TECHNOLOGY,WA CONSULTANTS LTD,445340,13080,876328977
BEIS,Met Office,2020-08-13,04 CONTRACTORS,TECHNOLOGY,SOLOS CONSULTANTS LTD,445341,18720,812035476
BEIS,Met Office,2020-08-13,04 CONTRACTORS,STRATEGIC INVESTMENT,SOLOS CONSULTANTS LTD,445342,8025.6,812035476
BEIS,Met Office,2020-08-13,04 CONTRACTORS,CHIEF FINANCIAL OFFICER,SOLOS CONSULTANTS LTD,445343,11998.8,812035476
BEIS,Met Office,2020-08-13,04 CONTRACTORS,TECHNOLOGY,SOLOS CONSULTANTS LTD,445344,7640.14,812035476
BEIS,Met Office,2020-08-13,04 CONTRACTORS,TECHNOLOGY,SOLOS CONSULTANTS LTD,445345,13000,812035476
BEIS,Met Office,2020-08-13,04 CONTRACTORS,STRATEGIC INVESTMENT,SOLOS CONSULTANTS LTD,445346,6992.1,812035476
BEIS,Met Office,2020-08-13,04 CONTRACTORS,STRATEGIC INVESTMENT,SOLOS CONSULTANTS LTD,445346,6943,812035476
BEIS,Met Office,2020-08-13,04 CONTRACTORS,OPERATIONS,SOLOS CONSULTANTS LTD,445347,13984.2,812035476
BEIS,Met Office,2020-08-13,04 CONTRACTORS,TECHNOLOGY,SOLOS CONSULTANTS LTD,445348,2750,812035476
BEIS,Met Office,2020-08-13,04 CONTRACTORS,TECHNOLOGY,SOLOS CONSULTANTS LTD,445349,11724.9,812035476
BEIS,Met Office,2020-08-13,04 CONTRACTORS,TECHNOLOGY,SOLOS CONSULTANTS LTD,445350,7053.84,812035476
BEIS,Met Office,2020-08-13,04 CONTRACTORS,OPERATIONS,SOLOS CONSULTANTS LTD,445351,9433.4,812035476
BEIS,Met Office,2020-08-13,04 CONTRACTORS,CORPORATE,SOLOS CONSULTANTS LTD,445352,7210.5,812035476
BEIS,Met Office,2020-08-13,04 CONTRACTORS,TECHNOLOGY,SOLOS CONSULTANTS LTD,445353,6150,812035476
BEIS,Met Office,2020-08-13,04 CONTRACTORS,STRATEGIC INVESTMENT,SOLOS CONSULTANTS LTD,445354,17680,812035476
BEIS,Met Office,2020-08-13,04 CONTRACTORS,CORPORATE,SOLOS CONSULTANTS LTD,445355,5756.07,812035476
BEIS,Met Office,2020-08-13,04 CONTRACTORS,OPERATIONS,SOLOS CONSULTANTS LTD,445356,8778,812035476
BEIS,Met Office,2020-08-13,04 CONTRACTORS,TECHNOLOGY,SOLOS CONSULTANTS LTD,445357,8478.94,812035476
BEIS,Met Office,2020-08-13,11 SERVICES,CHIEF FINANCIAL OFFICER,ADAM PHONES LTD,445406,342,538877093
BEIS,Met Office,2020-08-13,04 CONTRACTORS,TECHNOLOGY,FDM GROUP LIMITED,445407,9180,583540529
BEIS,Met Office,2020-08-13,04 CONTRACTORS,TECHNOLOGY,FDM GROUP LIMITED,445408,6210,583540529
BEIS,Met Office,2020-08-13,04 CONTRACTORS,TECHNOLOGY,FDM GROUP LIMITED,445409,5670,583540529
BEIS,Met Office,2020-08-13,04 CONTRACTORS,TECHNOLOGY,FDM GROUP LIMITED,445410,4860,583540529
BEIS,Met Office,2020-08-13,04 CONTRACTORS,TECHNOLOGY,FDM GROUP LIMITED,445411,6210,583540529
BEIS,Met Office,2020-08-13,04 CONTRACTORS,GOVERNMENT SERVICES,HAYS SPECIALIST RECRUITMENT LTD,445412,183.08,773695871
BEIS,Met Office,2020-08-13,04 CONTRACTORS,CORPORATE,HAYS SPECIALIST RECRUITMENT LTD,445413,634.67,773695871
BEIS,Met Office,2020-08-13,04 CONTRACTORS,TECHNOLOGY,HAYS SPECIALIST RECRUITMENT LTD,445414,558.7,773695871
BEIS,Met Office,2020-08-13,04 CONTRACTORS,TECHNOLOGY,HAYS SPECIALIST RECRUITMENT LTD,445415,573.8,773695871
BEIS,Met Office,2020-08-13,11 SERVICES,CHIEF FINANCIAL OFFICER,HARPER MACLEOD LLP,445416,322.4,762130557
BEIS,Met Office,2020-08-13,04 CONTRACTORS,TECHNOLOGY,SOLOS CONSULTANTS LTD,445417,7837.5,812035476
BEIS,Met Office,2020-08-13,04 CONTRACTORS,CHIEF FINANCIAL OFFICER,SOLOS CONSULTANTS LTD,445418,11956,812035476
BEIS,Met Office,2020-08-13,04 CONTRACTORS,STRATEGIC INVESTMENT,SOLOS CONSULTANTS LTD,445419,9360,812035476
BEIS,Met Office,2020-08-13,04 CONTRACTORS,TECHNOLOGY,SOLOS CONSULTANTS LTD,445420,14107.6,812035476
BEIS,Met Office,2020-08-13,04 CONTRACTORS,CORPORATE,SOLOS CONSULTANTS LTD,445421,8945.64,812035476
BEIS,Met Office,2020-08-13,04 CONTRACTORS,TECHNOLOGY,SOLOS CONSULTANTS LTD,445422,9492.21,812035476
BEIS,Met Office,2020-08-13,04 CONTRACTORS,TECHNOLOGY,SOLOS CONSULTANTS LTD,445423,10600,812035476
BEIS,Met Office,2020-08-13,04 CONTRACTORS,CORPORATE,SOLOS CONSULTANTS LTD,445424,6741.3,812035476
BEIS,Met Office,2020-08-13,04 CONTRACTORS,CHIEF FINANCIAL OFFICER,SOLOS CONSULTANTS LTD,445425,6035.92,812035476
BEIS,Met Office,2020-08-13,04 CONTRACTORS,TECHNOLOGY,SOLOS CONSULTANTS LTD,445426,9634.14,812035476
BEIS,Met Office,2020-08-13,04 CONTRACTORS,TECHNOLOGY,SOLOS CONSULTANTS LTD,445427,12905.75,812035476
BEIS,Met Office,2020-08-13,04 CONTRACTORS,TECHNOLOGY,SOLOS CONSULTANTS LTD,445428,8809.35,812035476
BEIS,Met Office,2020-08-13,04 CONTRACTORS,TECHNOLOGY,SOLOS CONSULTANTS LTD,445429,6019.2,812035476
BEIS,Met Office,2020-08-13,04 CONTRACTORS,STRATEGIC INVESTMENT,SOLOS CONSULTANTS LTD,445430,8988.4,812035476
BEIS,Met Office,2020-08-13,04 CONTRACTORS,TECHNOLOGY,SOLOS CONSULTANTS LTD,445431,11998.8,812035476
BEIS,Met Office,2020-08-13,04 CONTRACTORS,BUSINESS GROUP,SOLOS CONSULTANTS LTD,445432,8988.4,812035476
BEIS,Met Office,2020-08-13,04 CONTRACTORS,STRATEGIC INVESTMENT,SOLOS CONSULTANTS LTD,445433,10920,812035476
BEIS,Met Office,2020-08-13,04 CONTRACTORS,TECHNOLOGY,SOLOS CONSULTANTS LTD,445434,9880,812035476
BEIS,Met Office,2020-08-13,04 CONTRACTORS,GOVERNMENT SERVICES,SOLOS CONSULTANTS LTD,445435,7886.8,812035476
BEIS,Met Office,2020-08-13,11 SERVICES,GOVERNMENT SERVICES,ROWE IT LTD,445436,1732.5,924964394
BEIS,Met Office,2020-08-13,11 SERVICES,CORPORATE,HAWK INCENTIVES LTD,445437,3525,238839422
BEIS,Met Office,2020-08-13,11 SERVICES,CORPORATE,HAWK INCENTIVES LTD,445437,176.25,238839422
BEIS,Met Office,2020-08-13,11 SERVICES,CHIEF FINANCIAL OFFICER,ADAM PHONES LTD,445438,353.4,538877093
BEIS,Met Office,2020-08-13,06 ACCOMMODATION,CHIEF FINANCIAL OFFICER,Belfast International Airport Ltd,445439,23999.75,617777601
BEIS,Met Office,2020-08-13,11 SERVICES,STRATEGIC INVESTMENT,CACI LTD,445440,246,380609841
BEIS,Met Office,2020-08-13,04 CONTRACTORS,TECHNOLOGY,WA CONSULTANTS LTD,445443,17500,876328977
BEIS,Met Office,2020-08-13,04 CONTRACTORS,CHIEF FINANCIAL OFFICER,WA CONSULTANTS LTD,445444,720,876328977
BEIS,Met Office,2020-08-13,04 CONTRACTORS,STRATEGIC INVESTMENT,WA CONSULTANTS LTD,445445,14250,876328977
BEIS,Met Office,2020-08-13,04 CONTRACTORS,STRATEGIC INVESTMENT,WA CONSULTANTS LTD,445446,3000,876328977
BEIS,Met Office,2020-08-13,11 SERVICES,OPERATIONS,ROWE IT LTD,445447,47570,924964394
BEIS,Met Office,2020-08-13,11 SERVICES,SCIENCE,JB INTERNATIONAL TRAINING LTD,445448,3750,158513304
BEIS,Met Office,2020-08-13,11 SERVICES,SCIENCE,JB INTERNATIONAL TRAINING LTD,445449,-9375,158513304
BEIS,Met Office,2020-08-13,11 SERVICES,SCIENCE,JB INTERNATIONAL TRAINING LTD,445449,-9375,158513304
BEIS,Met Office,2020-08-13,11 SERVICES,SCIENCE,JB INTERNATIONAL TRAINING LTD,445449,-9375,158513304
BEIS,Met Office,2020-08-13,11 SERVICES,BUSINESS GROUP,CACI LTD,445450,10200.75,380609841
BEIS,Met Office,2020-08-13,11 SERVICES,CORPORATE,MERKLE UK THREE LTD T/A MERKLE PERISCOPIX,445451,8213.33,843316243
BEIS,Met Office,2020-08-13,11 SERVICES,TECHNOLOGY,AKAMAI TECHNOLOGIES LTD,445454,4918.08,745091237
BEIS,Met Office,2020-08-13,11 SERVICES,TECHNOLOGY,AKAMAI TECHNOLOGIES LTD,445454,25819.95,745091237
BEIS,Met Office,2020-08-13,11 SERVICES,OPERATIONS,ROWE IT LTD,445456,2972.5,924964394
BEIS,Met Office,2020-08-13,11 SERVICES,CORPORATE,ADVANCE HE,445457,2500,GB 152 1219 50
BEIS,Met Office,2020-08-13,11 SERVICES,CHIEF FINANCIAL OFFICER,ALLSTAR BUSINESS SOLUTIONS LTD,445458,1907.68,747880191
BEIS,Met Office,2020-08-13,06 ACCOMMODATION,CHIEF FINANCIAL OFFICER,FOX GROUNDS MAINTENANCE & LANDSCAPING LTD,445459,305.66,129495383
BEIS,Met Office,2020-08-13,11 SERVICES,OPERATIONS,ROWE IT LTD,445460,37835,924964394
BEIS,Met Office,2020-08-13,11 SERVICES,GOVERNMENT SERVICES,ROWE IT LTD,445461,14077.5,924964394
BEIS,Met Office,2020-08-13,04 CONTRACTORS,TECHNOLOGY,GCS IT RECRUITMENT SPECIALISTS LTD,445462,-2275,896156575
BEIS,Met Office,2020-08-13,11 SERVICES,GOVERNMENT SERVICES,ROWE IT LTD,445463,20825,924964394
BEIS,Met Office,2020-08-13,06 ACCOMMODATION,CHIEF FINANCIAL OFFICER,I J CANNINGS & SON LTD,445464,2647.46,192803203
BEIS,Met Office,2020-08-13,06 ACCOMMODATION,CHIEF FINANCIAL OFFICER,I J CANNINGS & SON LTD,445465,337.54,192803203
BEIS,Met Office,2020-08-13,04 CONTRACTORS,STRATEGIC INVESTMENT,ROWE IT LTD,445466,17250,924964394
BEIS,Met Office,2020-08-13,11 SERVICES,STRATEGIC INVESTMENT,ROWE IT LTD,445468,89550,924964394
BEIS,Met Office,2020-08-13,11 SERVICES,CHIEF FINANCIAL OFFICER,BT GLOBAL SERVICES,445469,17901.37,245719348
BEIS,Met Office,2020-08-13,04 CONTRACTORS,STRATEGIC INVESTMENT,WA CONSULTANTS LTD,445473,9680,876328977
BEIS,Met Office,2020-08-13,11 SERVICES,CHIEF FINANCIAL OFFICER,University Of Reading,445475,45,200012659
BEIS,Met Office,2020-08-13,04 CONTRACTORS,CHIEF FINANCIAL OFFICER,OUTSOURCE UK LIMITED,445476,5161.35,576118722
BEIS,Met Office,2020-08-13,03 STAFF COSTS T&S,CHIEF FINANCIAL OFFICER,ENTERPRISE RENT A CAR UK LTD,445477,417.29,215557314
BEIS,Met Office,2020-08-13,06 ACCOMMODATION,CHIEF FINANCIAL OFFICER,Health & Safety Laboratory,445494,26700,888810177
BEIS,Met Office,2020-08-13,04 CONTRACTORS,GOVERNMENT SERVICES,JOBSEEKERS RECRUITMENT SERVICES LTD,445497,848.04,130 1297 14
BEIS,Met Office,2020-08-13,04 CONTRACTORS,GOVERNMENT SERVICES,JOBSEEKERS RECRUITMENT SERVICES LTD,445498,403.65,130 1297 14
BEIS,Met Office,2020-08-13,04 CONTRACTORS,GOVERNMENT SERVICES,JOBSEEKERS RECRUITMENT SERVICES LTD,445499,663.78,130 1297 14
BEIS,Met Office,2020-08-13,04 CONTRACTORS,GOVERNMENT SERVICES,JOBSEEKERS RECRUITMENT SERVICES LTD,445500,813.66,130 1297 14
BEIS,Met Office,2020-08-13,10 EQUIPMENT MAINTENANCE,TECHNOLOGY,COMPUTACENTER (UK) LTD,445502,69227.62,490334648
BEIS,Met Office,2020-08-13,11 SERVICES,CORPORATE,HAWK INCENTIVES LTD,445503,2340,238839422
BEIS,Met Office,2020-08-13,11 SERVICES,CORPORATE,HAWK INCENTIVES LTD,445503,117,238839422
BEIS,Met Office,2020-08-13,11 SERVICES,OPERATIONS,HITACHI CAPITAL VEHICLE SOLUTIONS,445505,4713.72,GB 823 8248 22
BEIS,Met Office,2020-08-13,11 SERVICES,TECHNOLOGY,CLOUDREACH EUROPE LIMITED,445507,1950.63,978187168
BEIS,Met Office,2020-08-13,13 MISCELLANEOUS,SCIENCE,UNIVERSITY OF EAST ANGLIA,445508,1000,595183505
BEIS,Met Office,2020-08-13,08 SOFTWARE LICENCES,TECHNOLOGY,SOFTWAREONE,445509,38160,GB 942 5301 43
BEIS,Met Office,2020-08-13,11 SERVICES,TECHNOLOGY,CLOUDREACH EUROPE LIMITED,445510,7110,978187168
BEIS,Met Office,2020-08-13,04 CONTRACTORS,STRATEGIC INVESTMENT,OUTSOURCE UK LIMITED,445513,-4430.79,576118722
BEIS,Met Office,2020-08-13,04 CONTRACTORS,STRATEGIC INVESTMENT,OUTSOURCE UK LIMITED,445514,1969.24,576118722
BEIS,Met Office,2020-08-13,10 EQUIPMENT MAINTENANCE,OPERATIONS,RAISE TELECOMS LTD,445515,15275,166016521
BEIS,Met Office,2020-08-13,04 CONTRACTORS,TECHNOLOGY,WA CONSULTANTS LTD,445516,14577.5,876328977
BEIS,Met Office,2020-08-13,06 ACCOMMODATION,CHIEF FINANCIAL OFFICER,NESS ENGINEERING LTD,445517,194.76,430188472
BEIS,Met Office,2020-08-13,06 ACCOMMODATION,CHIEF FINANCIAL OFFICER,CORONA ENERGY LTD,445521,545.92,577704800
BEIS,Met Office,2020-08-13,06 ACCOMMODATION,CHIEF FINANCIAL OFFICER,CORONA ENERGY LTD,445522,572.67,577704800
BEIS,Met Office,2020-08-13,06 ACCOMMODATION,CHIEF FINANCIAL OFFICER,CORONA ENERGY LTD,445523,501.71,577704800
BEIS,Met Office,2020-08-13,04 CONTRACTORS,TECHNOLOGY,GCS IT RECRUITMENT SPECIALISTS LTD,445524,16500,896156575
BEIS,Met Office,2020-08-13,04 CONTRACTORS,TECHNOLOGY,GCS IT RECRUITMENT SPECIALISTS LTD,445525,8190,896156575
BEIS,Met Office,2020-08-13,06 ACCOMMODATION,CHIEF FINANCIAL OFFICER,NESS ENGINEERING LTD,445526,4757.8,430188472
BEIS,Met Office,2020-08-13,08 SOFTWARE LICENCES,TECHNOLOGY,COMPUTACENTER (UK) LTD,445529,2719.08,490334648
BEIS,Met Office,2020-08-13,11 SERVICES,CHIEF FINANCIAL OFFICER,SURE SOUTH ATLANTIC LTD,445530,613.18,NOVATREG
BEIS,Met Office,2020-08-13,11 SERVICES,GOVERNMENT SERVICES,Cgi It Uk Limited,445531,180460.25,232615194
BEIS,Met Office,2020-08-13,11 SERVICES,CHIEF FINANCIAL OFFICER,ST JOHN AMBULANCE,445532,353,564553916
BEIS,Met Office,2020-08-13,11 SERVICES,BUSINESS GROUP,SPOKE (INTERACTIVE) LTD,445533,700,840156451
BEIS,Met Office,2020-08-13,11 SERVICES,OPERATIONS,HITACHI CAPITAL VEHICLE SOLUTIONS,445534,4713.72,GB 823 8248 22
BEIS,Met Office,2020-08-13,04 CONTRACTORS,CORPORATE,QUINTON DAVIES LIMITED,445537,22220,291532892
BEIS,Met Office,2020-08-13,04 CONTRACTORS,CORPORATE,QUINTON DAVIES LIMITED,445538,16445,291532892
BEIS,Met Office,2020-08-13,03 STAFF COSTS T&S,CHIEF FINANCIAL OFFICER,ENTERPRISE RENT A CAR UK LTD,445539,720.09,215557314
BEIS,Met Office,2020-08-13,04 CONTRACTORS,GOVERNMENT SERVICES,JOBSEEKERS RECRUITMENT SERVICES LTD,445541,663.78,130 1297 14
BEIS,Met Office,2020-08-13,11 SERVICES,CHIEF FINANCIAL OFFICER,EXPONENTIAL-E,445542,3158.54,GB798572653
BEIS,Met Office,2020-08-13,04 CONTRACTORS,OPERATIONS,JOBSEEKERS RECRUITMENT SERVICES LTD,445543,577.2,130 1297 14
BEIS,Met Office,2020-08-13,06 ACCOMMODATION,CHIEF FINANCIAL OFFICER,Health & Safety Laboratory,445546,26700,888810177
BEIS,Met Office,2020-08-13,06 ACCOMMODATION,CHIEF FINANCIAL OFFICER,DUNSTAFFNAGE ESTATE,445549,750,-
BEIS,Met Office,2020-08-13,06 ACCOMMODATION,CHIEF FINANCIAL OFFICER,HSB ENGINEERING INSURANCE SERVICES LTD,445553,267.08,652642243
BEIS,Met Office,2020-08-13,06 ACCOMMODATION,CHIEF FINANCIAL OFFICER,LAMBERT SMITH HAMPTON GROUP LTD CLIENT A/C,445554,92.5,NOVAT
BEIS,Met Office,2020-08-13,06 ACCOMMODATION,CHIEF FINANCIAL OFFICER,LAMBERT SMITH HAMPTON GROUP LTD CLIENT A/C,445555,111,NOVAT
BEIS,Met Office,2020-08-13,06 ACCOMMODATION,CHIEF FINANCIAL OFFICER,POWER NI ENERGY LTD,445561,405.95,617518142
BEIS,Met Office,2020-08-13,03 STAFF COSTS T&S,OPERATIONS,CARTUS LTD,445471,250,768489458
BEIS,Met Office,2020-08-13,06 ACCOMMODATION,CHIEF FINANCIAL OFFICER,REDACTED PERSONAL DATA,445225,200,N/A
BEIS,Met Office,2020-08-13,06 ACCOMMODATION,CHIEF FINANCIAL OFFICER,REDACTED PERSONAL DATA,445236,160,166458184
BEIS,Met Office,2020-08-13,FIXTURE & FITTINGS,CHIEF FINANCIAL OFFICER,REDACTED PERSONAL DATA,445452,6640,426523462
BEIS,Met Office,2020-08-13,11 SERVICES,GOVERNMENT SERVICES,REDACTED PERSONAL DATA,445455,1473.09,-
BEIS,Met Office,2020-08-13,11 SERVICES,GOVERNMENT SERVICES,REDACTED PERSONAL DATA,445455,9950,-
BEIS,Met Office,2020-08-13,11 SERVICES,OPERATIONS,REDACTED PERSONAL DATA,445501,1900,262883631
BEIS,Met Office,2020-08-13,11 SERVICES,OPERATIONS,REDACTED PERSONAL DATA,445501,2550,262883631
BEIS,Met Office,2020-08-19,11 SERVICES,GOVERNMENT SERVICES,ECMWF,20605,14999.28,NOTVATREG
BEIS,Met Office,2020-08-19,08 SOFTWARE LICENCES,GOVERNMENT SERVICES,"IBL SOFTWARE ENGINEERING, SPOL S.R.O.",21602,123716.5,SK2020241883
BEIS,Met Office,2020-08-19,11 SERVICES,SCIENCE,REGENTS OF THE UNIVERSITY OF COLORADO,21677,20392.65,-
BEIS,Met Office,2020-08-19,11 SERVICES,BUSINESS GROUP,METEO-FRANCE AGENCE COMPTABLE SEC D2C,21715,5806.53,FR03180060030
BEIS,Met Office,2020-08-19,06 ACCOMMODATION,CHIEF FINANCIAL OFFICER,JAMES & MARCIA BENJAMIN,445227,520,-
BEIS,Met Office,2020-08-19,11 SERVICES,GOVERNMENT SERVICES,TANZANIA METEOROLOGICAL AGENCY,445336,26000,-
BEIS,Met Office,2020-08-19,11 SERVICES,GOVERNMENT SERVICES,INFORKOMM MEDIA SERVICES LIMITED,445720,3098.9,0134119J
BEIS,Met Office,2020-08-19,11 SERVICES,OPERATIONS,NSSL GLOBAL LTD,9872,55.77,725151948
BEIS,Met Office,2020-08-19,11 SERVICES,OPERATIONS,NSSL GLOBAL LTD,9873,55.77,725151948
BEIS,Met Office,2020-08-19,11 SERVICES,SCIENCE,REDACTED PERSONAL DATA,21675,4566.13,N/A
BEIS,Met Office,2020-08-20,11 SERVICES,GOVERNMENT SERVICES,University Of Leeds,439594,64448,613451470
BEIS,Met Office,2020-08-20,06 ACCOMMODATION,CHIEF FINANCIAL OFFICER,SHETLAND CLEANING SERVICES,442340,725.48,430028404
BEIS,Met Office,2020-08-20,06 ACCOMMODATION,CHIEF FINANCIAL OFFICER,SHETLAND CLEANING SERVICES,443294,725.48,430028404
BEIS,Met Office,2020-08-20,11 SERVICES,GOVERNMENT SERVICES,UNIVERSITY OF CAMBRIDGE,444050,10000,214222124
BEIS,Met Office,2020-08-20,10 EQUIPMENT MAINTENANCE,SUPERCOMPUTING,Hewlett Packard Ltd,444253,737000,314149679
BEIS,Met Office,2020-08-20,11 SERVICES,GOVERNMENT SERVICES,University Of Reading,445152,64802.2,200012659
BEIS,Met Office,2020-08-20,11 SERVICES,SCIENCE,A I MEDIA,445226,252,994262974
BEIS,Met Office,2020-08-20,03 STAFF COSTS T&S,OPERATIONS,CHARLIE'S TRAVEL LTD,445296,582,783848277
BEIS,Met Office,2020-08-20,03 STAFF COSTS T&S,OPERATIONS,CHARLIE'S TRAVEL LTD,445296,899,783848277
BEIS,Met Office,2020-08-20,11 SERVICES,GOVERNMENT SERVICES,University Of Leeds,445442,21333.6,613451470
BEIS,Met Office,2020-08-20,11 SERVICES,CHIEF FINANCIAL OFFICER,BT CONFERENCING,445495,230.75,245719348
BEIS,Met Office,2020-08-20,06 ACCOMMODATION,CHIEF FINANCIAL OFFICER,SOUTH WEST WATER LTD,445496,498.01,236873674
BEIS,Met Office,2020-08-20,11 SERVICES,GOVERNMENT SERVICES,Arup,445504,51828,524461265
BEIS,Met Office,2020-08-20,10 EQUIPMENT MAINTENANCE,TECHNOLOGY,Hewlett Packard Ltd,445512,1882.8,314149679
BEIS,Met Office,2020-08-20,06 ACCOMMODATION,CHIEF FINANCIAL OFFICER,CORONA ENERGY LTD,445518,10376.09,577704800
BEIS,Met Office,2020-08-20,06 ACCOMMODATION,CHIEF FINANCIAL OFFICER,CORONA ENERGY LTD,445519,11306.5,577704800
BEIS,Met Office,2020-08-20,06 ACCOMMODATION,CHIEF FINANCIAL OFFICER,CORONA ENERGY LTD,445520,-15280.88,577704800
BEIS,Met Office,2020-08-20,11 SERVICES,OPERATIONS,FORGEROCK LTD,445528,15334.17,988863532
BEIS,Met Office,2020-08-20,11 SERVICES,CHIEF FINANCIAL OFFICER,ANVIL MOBILE LIMITED,445536,82.6,981686175
BEIS,Met Office,2020-08-20,11 SERVICES,CHIEF FINANCIAL OFFICER,ANVIL MOBILE LIMITED,445536,31.7,981686175
BEIS,Met Office,2020-08-20,11 SERVICES,CHIEF FINANCIAL OFFICER,ANVIL MOBILE LIMITED,445536,98.6,981686175
BEIS,Met Office,2020-08-20,11 SERVICES,CHIEF FINANCIAL OFFICER,ANVIL MOBILE LIMITED,445536,22.6,981686175
BEIS,Met Office,2020-08-20,11 SERVICES,CHIEF FINANCIAL OFFICER,ANVIL MOBILE LIMITED,445536,111.3,981686175
BEIS,Met Office,2020-08-20,11 SERVICES,CHIEF FINANCIAL OFFICER,ANVIL MOBILE LIMITED,445536,34.85,981686175
BEIS,Met Office,2020-08-20,11 SERVICES,GOVERNMENT SERVICES,University Of Reading,445540,45984.51,200012659
BEIS,Met Office,2020-08-20,06 ACCOMMODATION,CHIEF FINANCIAL OFFICER,NORSCOTT VENDING SERVICES LTD,445544,118.4,751402071
BEIS,Met Office,2020-08-20,10 EQUIPMENT MAINTENANCE,TECHNOLOGY,Hewlett Packard Ltd,445545,2599.29,314149679
BEIS,Met Office,2020-08-20,06 ACCOMMODATION,CHIEF FINANCIAL OFFICER,STONE HILL PARK LTD,445548,16.9,196461180
BEIS,Met Office,2020-08-20,10 EQUIPMENT MAINTENANCE,TECHNOLOGY,Hewlett Packard Ltd,445550,1599.6,314149679
BEIS,Met Office,2020-08-20,06 ACCOMMODATION,CHIEF FINANCIAL OFFICER,NORSCOTT VENDING SERVICES LTD,445551,85,751402071
BEIS,Met Office,2020-08-20,06 ACCOMMODATION,CHIEF FINANCIAL OFFICER,HSB ENGINEERING INSURANCE SERVICES LTD,445552,4945.9,652642243
BEIS,Met Office,2020-08-20,13 MISCELLANEOUS,CHIEF FINANCIAL OFFICER,EDEN SPRINGS UK LTD,445557,338.68,232160411
BEIS,Met Office,2020-08-20,06 ACCOMMODATION,CHIEF FINANCIAL OFFICER,EDF ENERGY CUSTOMERS PLC,445558,90175.11,523041202
BEIS,Met Office,2020-08-20,11 SERVICES,CHIEF FINANCIAL OFFICER,JERSEY TELECOM,445559,1324.01,NOTVATREG
BEIS,Met Office,2020-08-20,06 ACCOMMODATION,CHIEF FINANCIAL OFFICER,EDF ENERGY CUSTOMERS PLC,445560,111961.25,523041202
BEIS,Met Office,2020-08-20,06 ACCOMMODATION,CHIEF FINANCIAL OFFICER,EDF ENERGY CUSTOMERS PLC,445562,394487.38,523041202
BEIS,Met Office,2020-08-20,13 MISCELLANEOUS,CHIEF FINANCIAL OFFICER,CANON UK LTD,445563,208.6,523797128
BEIS,Met Office,2020-08-20,13 MISCELLANEOUS,CHIEF FINANCIAL OFFICER,CANON UK LTD,445563,16.2,523797128
BEIS,Met Office,2020-08-20,13 MISCELLANEOUS,CHIEF FINANCIAL OFFICER,CANON UK LTD,445563,37.81,523797128
BEIS,Met Office,2020-08-20,13 MISCELLANEOUS,CHIEF FINANCIAL OFFICER,CANON UK LTD,445563,59.79,523797128
BEIS,Met Office,2020-08-20,06 ACCOMMODATION,CHIEF FINANCIAL OFFICER,POWER NI ENERGY LTD,445565,364.9,617518142
BEIS,Met Office,2020-08-20,06 ACCOMMODATION,CHIEF FINANCIAL OFFICER,EDF ENERGY CUSTOMERS PLC,445566,118434.36,523041202
BEIS,Met Office,2020-08-20,11 SERVICES,CHIEF FINANCIAL OFFICER,JERSEY TELECOM,445567,1283.61,NOTVATREG
BEIS,Met Office,2020-08-20,04 CONTRACTORS,STRATEGIC INVESTMENT,SOLOS CONSULTANTS LTD,445650,12350,812035476
BEIS,Met Office,2020-08-20,04 CONTRACTORS,CHIEF FINANCIAL OFFICER,WA CONSULTANTS LTD,445651,18375,876328977
BEIS,Met Office,2020-08-20,04 CONTRACTORS,TECHNOLOGY,WA CONSULTANTS LTD,445652,18000,876328977
BEIS,Met Office,2020-08-20,04 CONTRACTORS,CHIEF FINANCIAL OFFICER,WA CONSULTANTS LTD,445653,10222.5,876328977
BEIS,Met Office,2020-08-20,11 SERVICES,GOVERNMENT SERVICES,University of Plymouth,445654,14695.2,168287859
BEIS,Met Office,2020-08-20,11 SERVICES,TECHNOLOGY,CLOUDREACH EUROPE LIMITED,445655,4000,978187168
BEIS,Met Office,2020-08-20,04 CONTRACTORS,TECHNOLOGY,WA CONSULTANTS LTD,445656,12500,876328977
BEIS,Met Office,2020-08-20,06 ACCOMMODATION,CHIEF FINANCIAL OFFICER,RIVER RIDGE,445659,135.51,176286083
BEIS,Met Office,2020-08-20,11 SERVICES,GOVERNMENT SERVICES,CACI LTD,445660,5384,380609841
BEIS,Met Office,2020-08-20,11 SERVICES,GOVERNMENT SERVICES,CACI LTD,445660,27762,380609841
BEIS,Met Office,2020-08-20,11 SERVICES,GOVERNMENT SERVICES,CACI LTD,445660,34791.5,380609841
BEIS,Met Office,2020-08-20,11 SERVICES,GOVERNMENT SERVICES,CACI LTD,445660,1704,380609841
BEIS,Met Office,2020-08-20,11 SERVICES,CHIEF FINANCIAL OFFICER,GAMMA BUSINESS COMMUNICATIONS LTD,445661,413.1,823820344
BEIS,Met Office,2020-08-20,04 CONTRACTORS,TECHNOLOGY,SOLOS CONSULTANTS LTD,445662,12168,812035476
BEIS,Met Office,2020-08-20,11 SERVICES,CHIEF FINANCIAL OFFICER,SURE SOUTH ATLANTIC LTD,445663,591.15,-
BEIS,Met Office,2020-08-20,11 SERVICES,CHIEF FINANCIAL OFFICER,SURE SOUTH ATLANTIC LTD,445664,4743,-
BEIS,Met Office,2020-08-20,11 SERVICES,CHIEF FINANCIAL OFFICER,TELEFONICA O2 UK LIMITED,445665,7856.62,778603785
BEIS,Met Office,2020-08-20,04 CONTRACTORS,STRATEGIC INVESTMENT,HAYS SPECIALIST RECRUITMENT LTD,445666,422.8,773695871
BEIS,Met Office,2020-08-20,04 CONTRACTORS,STRATEGIC INVESTMENT,HAYS SPECIALIST RECRUITMENT LTD,445667,528.5,773695871
BEIS,Met Office,2020-08-20,04 CONTRACTORS,STRATEGIC INVESTMENT,HAYS SPECIALIST RECRUITMENT LTD,445668,558.7,773695871
BEIS,Met Office,2020-08-20,04 CONTRACTORS,STRATEGIC INVESTMENT,HAYS SPECIALIST RECRUITMENT LTD,445669,490.75,773695871
BEIS,Met Office,2020-08-20,04 CONTRACTORS,CORPORATE,HAYS SPECIALIST RECRUITMENT LTD,445670,890.99,773695871
BEIS,Met Office,2020-08-20,04 CONTRACTORS,CORPORATE,HAYS SPECIALIST RECRUITMENT LTD,445671,622.47,773695871
BEIS,Met Office,2020-08-20,04 CONTRACTORS,CORPORATE,HAYS SPECIALIST RECRUITMENT LTD,445672,657.86,773695871
BEIS,Met Office,2020-08-20,11 SERVICES,GOVERNMENT SERVICES,ACCELERATION EMARKETING,445673,5257.06,848940776
BEIS,Met Office,2020-08-20,06 ACCOMMODATION,CHIEF FINANCIAL OFFICER,SAFESTORE LTD,445674,2681.21,722887607
BEIS,Met Office,2020-08-20,13 MISCELLANEOUS,CORPORATE,QUINTON DAVIES LIMITED,445675,13800,291532892
BEIS,Met Office,2020-08-20,FIXTURE & FITTINGS,CHIEF FINANCIAL OFFICER,LARS COMMUNICATIONS LTD,445676,1855,531463858
BEIS,Met Office,2020-08-20,12 INTERNATIONAL,OPERATIONS,CROWN AGENTS BANK,445677,11641.37,-
BEIS,Met Office,2020-08-20,06 ACCOMMODATION,CHIEF FINANCIAL OFFICER,COUNTRYWIDE GROUNDS MAINTENANCE LTD,445679,123.36,611731279
BEIS,Met Office,2020-08-20,06 ACCOMMODATION,CHIEF FINANCIAL OFFICER,COUNTRYWIDE GROUNDS MAINTENANCE LTD,445679,249.64,611731279
BEIS,Met Office,2020-08-20,06 ACCOMMODATION,CHIEF FINANCIAL OFFICER,COUNTRYWIDE GROUNDS MAINTENANCE LTD,445679,320.68,611731279
BEIS,Met Office,2020-08-20,06 ACCOMMODATION,CHIEF FINANCIAL OFFICER,COUNTRYWIDE GROUNDS MAINTENANCE LTD,445679,228,611731279
BEIS,Met Office,2020-08-20,06 ACCOMMODATION,CHIEF FINANCIAL OFFICER,COUNTRYWIDE GROUNDS MAINTENANCE LTD,445679,208.17,611731279
BEIS,Met Office,2020-08-20,06 ACCOMMODATION,CHIEF FINANCIAL OFFICER,COUNTRYWIDE GROUNDS MAINTENANCE LTD,445679,68.82,611731279
BEIS,Met Office,2020-08-20,06 ACCOMMODATION,CHIEF FINANCIAL OFFICER,COUNTRYWIDE GROUNDS MAINTENANCE LTD,445679,193.26,611731279
BEIS,Met Office,2020-08-20,06 ACCOMMODATION,CHIEF FINANCIAL OFFICER,COUNTRYWIDE GROUNDS MAINTENANCE LTD,445679,176.42,611731279
BEIS,Met Office,2020-08-20,06 ACCOMMODATION,CHIEF FINANCIAL OFFICER,COUNTRYWIDE GROUNDS MAINTENANCE LTD,445679,163.36,611731279
BEIS,Met Office,2020-08-20,06 ACCOMMODATION,CHIEF FINANCIAL OFFICER,COUNTRYWIDE GROUNDS MAINTENANCE LTD,445679,67.31,611731279
BEIS,Met Office,2020-08-20,06 ACCOMMODATION,CHIEF FINANCIAL OFFICER,COUNTRYWIDE GROUNDS MAINTENANCE LTD,445679,161.98,611731279
BEIS,Met Office,2020-08-20,06 ACCOMMODATION,CHIEF FINANCIAL OFFICER,COUNTRYWIDE GROUNDS MAINTENANCE LTD,445679,201.48,611731279
BEIS,Met Office,2020-08-20,06 ACCOMMODATION,CHIEF FINANCIAL OFFICER,COUNTRYWIDE GROUNDS MAINTENANCE LTD,445679,146.82,611731279
BEIS,Met Office,2020-08-20,06 ACCOMMODATION,CHIEF FINANCIAL OFFICER,COUNTRYWIDE GROUNDS MAINTENANCE LTD,445679,201.48,611731279
BEIS,Met Office,2020-08-20,06 ACCOMMODATION,CHIEF FINANCIAL OFFICER,COUNTRYWIDE GROUNDS MAINTENANCE LTD,445679,143.81,611731279
BEIS,Met Office,2020-08-20,06 ACCOMMODATION,CHIEF FINANCIAL OFFICER,COUNTRYWIDE GROUNDS MAINTENANCE LTD,445679,263.62,611731279
BEIS,Met Office,2020-08-20,06 ACCOMMODATION,CHIEF FINANCIAL OFFICER,COUNTRYWIDE GROUNDS MAINTENANCE LTD,445679,260,611731279
BEIS,Met Office,2020-08-20,06 ACCOMMODATION,CHIEF FINANCIAL OFFICER,COUNTRYWIDE GROUNDS MAINTENANCE LTD,445679,352.58,611731279
BEIS,Met Office,2020-08-20,03 STAFF COSTS T&S,OPERATIONS,AIRPORT CAR RENTALS LTD,445681,320,-
BEIS,Met Office,2020-08-20,04 CONTRACTORS,STRATEGIC INVESTMENT,OUTSOURCE UK LIMITED,445682,1483.86,576118722
BEIS,Met Office,2020-08-20,11 SERVICES,STRATEGIC INVESTMENT,WSO2 (UK) LTD,445683,3040,977308971
BEIS,Met Office,2020-08-20,06 ACCOMMODATION,CHIEF FINANCIAL OFFICER,GBC LTD,445685,227.76,859903672
BEIS,Met Office,2020-08-20,06 ACCOMMODATION,CHIEF FINANCIAL OFFICER,GBC LTD,445685,277.2,859903672
BEIS,Met Office,2020-08-20,13 MISCELLANEOUS,CHIEF FINANCIAL OFFICER,POSTURITE (UK) LTD,445687,654.1,583565114
BEIS,Met Office,2020-08-20,11 SERVICES,CHIEF FINANCIAL OFFICER,GIBRALTAR NYNEX COMMUNICATIONS LTD,445688,694,NOVAT
BEIS,Met Office,2020-08-20,06 ACCOMMODATION,CHIEF FINANCIAL OFFICER,I J CANNINGS & SON LTD,445690,612.37,192803203
BEIS,Met Office,2020-08-20,04 CONTRACTORS,STRATEGIC INVESTMENT,BJSS LIMITED,445691,19125,613295452
BEIS,Met Office,2020-08-20,06 ACCOMMODATION,CHIEF FINANCIAL OFFICER,EXCEL AV LIMITED,445692,5679.97,994305005
BEIS,Met Office,2020-08-20,07 EQUIPMENT,OPERATIONS,GROOVE ASSOCIATES LTD,445693,1585.3,108381578
BEIS,Met Office,2020-08-20,07 EQUIPMENT,OPERATIONS,GROOVE ASSOCIATES LTD,445693,1083.8,108381578
BEIS,Met Office,2020-08-20,11 SERVICES,CORPORATE,BW TRAINING LTD,445694,1185,-
BEIS,Met Office,2020-08-20,07 EQUIPMENT,OPERATIONS,GAMMA TELECOM LTD,445707,120.5,823820344
BEIS,Met Office,2020-08-20,07 EQUIPMENT,OPERATIONS,GAMMA TELECOM LTD,445707,52,823820344
BEIS,Met Office,2020-08-20,11 SERVICES,OPERATIONS,GAMMA TELECOM LTD,445707,3397.56,823820344
BEIS,Met Office,2020-08-20,04 CONTRACTORS,CORPORATE,HAYS SPECIALIST RECRUITMENT LTD,445708,634.67,773695871
BEIS,Met Office,2020-08-20,04 CONTRACTORS,CORPORATE,HAYS SPECIALIST RECRUITMENT LTD,445709,610.25,773695871
BEIS,Met Office,2020-08-20,04 CONTRACTORS,TECHNOLOGY,HAYS SPECIALIST RECRUITMENT LTD,445710,505.85,773695871
BEIS,Met Office,2020-08-20,04 CONTRACTORS,CORPORATE,HAYS SPECIALIST RECRUITMENT LTD,445711,366.15,773695871
BEIS,Met Office,2020-08-20,04 CONTRACTORS,STRATEGIC INVESTMENT,HAYS SPECIALIST RECRUITMENT LTD,445712,453,773695871
BEIS,Met Office,2020-08-20,04 CONTRACTORS,TECHNOLOGY,HAYS SPECIALIST RECRUITMENT LTD,445713,558.7,773695871
BEIS,Met Office,2020-08-20,11 SERVICES,CORPORATE,Landmark Information Group Ltd,445714,21635,634509735
BEIS,Met Office,2020-08-20,11 SERVICES,CORPORATE,Landmark Information Group Ltd,445715,52981.43,634509735
BEIS,Met Office,2020-08-20,11 SERVICES,CORPORATE,Landmark Information Group Ltd,445716,42092.86,634509735
BEIS,Met Office,2020-08-20,11 SERVICES,CORPORATE,Landmark Information Group Ltd,445717,17300,634509735
BEIS,Met Office,2020-08-20,11 SERVICES,STRATEGIC INVESTMENT,BAE SYSTEMS APPLIED INTELLIGENCE LIMITED,445719,3866.87,GB641407169
BEIS,Met Office,2020-08-20,06 ACCOMMODATION,CHIEF FINANCIAL OFFICER,BRITISH GAS TRADING LTD,445721,5673.42,684966762
BEIS,Met Office,2020-08-20,11 SERVICES,GOVERNMENT SERVICES,BEIS,445723,502860,888825550
BEIS,Met Office,2020-08-20,06 ACCOMMODATION,CHIEF FINANCIAL OFFICER,FAIR ISLE ELECTRICITY COMPANY LTD,445724,133.02,774548783
BEIS,Met Office,2020-08-20,13 MISCELLANEOUS,CHIEF FINANCIAL OFFICER,ARTHUR J. GALLAGHER INSURANCE BROKERS LIMITED,445762,1001.8,GB484746209
BEIS,Met Office,2020-08-20,13 MISCELLANEOUS,CHIEF FINANCIAL OFFICER,ARTHUR J. GALLAGHER INSURANCE BROKERS LIMITED,445765,9882.35,GB484746209
BEIS,Met Office,2020-08-20,13 MISCELLANEOUS,CHIEF FINANCIAL OFFICER,ARTHUR J. GALLAGHER INSURANCE BROKERS LIMITED,445767,1464.96,GB484746209
BEIS,Met Office,2020-08-20,13 MISCELLANEOUS,CHIEF FINANCIAL OFFICER,ARTHUR J. GALLAGHER INSURANCE BROKERS LIMITED,445768,86800,GB484746209
BEIS,Met Office,2020-08-20,13 MISCELLANEOUS,CHIEF FINANCIAL OFFICER,ARTHUR J. GALLAGHER INSURANCE BROKERS LIMITED,445769,29086.4,GB484746209
BEIS,Met Office,2020-08-20,13 MISCELLANEOUS,CHIEF FINANCIAL OFFICER,ARTHUR J. GALLAGHER INSURANCE BROKERS LIMITED,445770,15568,GB484746209
BEIS,Met Office,2020-08-20,03 STAFF COSTS T&S,OPERATIONS,CARTUS LTD,445470,325,768489458
BEIS,Met Office,2020-08-20,07 EQUIPMENT,CHIEF FINANCIAL OFFICER,NATWEST COMMERCIAL CARDS DIVISION,445759,3987.69,N/A
BEIS,Met Office,2020-08-20,TRADE CREDITORS,OTHER,NATWEST COMMERCIAL CARDS DIVISION,445760,99092.19,N/A
BEIS,Met Office,2020-08-20,06 ACCOMMODATION,CHIEF FINANCIAL OFFICER,REDACTED PERSONAL DATA,445657,950,899936427
BEIS,Met Office,2020-08-20,06 ACCOMMODATION,CHIEF FINANCIAL OFFICER,REDACTED PERSONAL DATA,445658,95,899936427
BEIS,Met Office,2020-08-20,STOCK,OPERATIONS,REDACTED PERSONAL DATA,445678,0,689116694
BEIS,Met Office,2020-08-20,STOCK,OPERATIONS,REDACTED PERSONAL DATA,445678,22484,689116694
BEIS,Met Office,2020-08-20,06 ACCOMMODATION,CHIEF FINANCIAL OFFICER,REDACTED PERSONAL DATA,445686,751,426523462
BEIS,Met Office,2020-08-20,11 SERVICES,CORPORATE,REDACTED PERSONAL DATA,445722,4350,143043312
BEIS,Met Office,2020-08-24,11 SERVICES,CORPORATE,SODEXO MOT SOL UK  LTD (CHILDCARE RECEIPTS),445851,444.63,733644335
BEIS,Met Office,2020-08-26,11 SERVICES,OPERATIONS,"EUTELSAT, S.A.",21657,3115.77,-
BEIS,Met Office,2020-08-26,11 SERVICES,OPERATIONS,"EUTELSAT, S.A.",21658,4014.17,-
BEIS,Met Office,2020-08-26,11 SERVICES,GOVERNMENT SERVICES,Red Cross Red Crescent Climate Centre,21695,49446.18,N/A
BEIS,Met Office,2020-08-26,11 SERVICES,SCIENCE,PETER WALTON,21699,913.15,-
BEIS,Met Office,2020-08-26,11 SERVICES,SCIENCE,Knmi,21738,35277.53,821693992B01
BEIS,Met Office,2020-08-26,12 INTERNATIONAL,OPERATIONS,MACITECHSY SOLUTIONS,445877,3488.4,-
BEIS,Met Office,2020-08-26,11 SERVICES,GOVERNMENT SERVICES,"INTELLOVATIONS, LLC",9895,1639.84,-
BEIS,Met Office,2020-08-27,06 ACCOMMODATION,CHIEF FINANCIAL OFFICER,Exeter City Council,440194,140288,142335594
BEIS,Met Office,2020-08-27,04 CONTRACTORS,TECHNOLOGY,WA CONSULTANTS LTD,443013,10710,876328977
BEIS,Met Office,2020-08-27,04 CONTRACTORS,CHIEF FINANCIAL OFFICER,WA CONSULTANTS LTD,443038,6265.8,876328977
BEIS,Met Office,2020-08-27,11 SERVICES,SUPERCOMPUTING,HOGAN LOVELLS INTERNATIONAL LLP,443328,202.98,GB123371543
BEIS,Met Office,2020-08-27,11 SERVICES,SUPERCOMPUTING,HOGAN LOVELLS INTERNATIONAL LLP,443328,66522.5,GB123371543
BEIS,Met Office,2020-08-27,11 SERVICES,SUPERCOMPUTING,HOGAN LOVELLS INTERNATIONAL LLP,443332,1655,GB123371543
BEIS,Met Office,2020-08-27,11 SERVICES,SUPERCOMPUTING,HOGAN LOVELLS INTERNATIONAL LLP,443332,46259.4,GB123371543
BEIS,Met Office,2020-08-27,11 SERVICES,SUPERCOMPUTING,HOGAN LOVELLS INTERNATIONAL LLP,443334,3341.02,GB123371543
BEIS,Met Office,2020-08-27,11 SERVICES,SUPERCOMPUTING,HOGAN LOVELLS INTERNATIONAL LLP,443334,43226.87,GB123371543
BEIS,Met Office,2020-08-27,11 SERVICES,SUPERCOMPUTING,HOGAN LOVELLS INTERNATIONAL LLP,443335,80156.18,GB123371543
BEIS,Met Office,2020-08-27,11 SERVICES,SUPERCOMPUTING,HOGAN LOVELLS INTERNATIONAL LLP,443335,866.42,GB123371543
BEIS,Met Office,2020-08-27,11 SERVICES,SUPERCOMPUTING,HOGAN LOVELLS INTERNATIONAL LLP,443336,38408.46,GB123371543
BEIS,Met Office,2020-08-27,11 SERVICES,SUPERCOMPUTING,HOGAN LOVELLS INTERNATIONAL LLP,443337,8030.21,GB123371543
BEIS,Met Office,2020-08-27,11 SERVICES,SUPERCOMPUTING,HOGAN LOVELLS INTERNATIONAL LLP,443338,1125.94,GB123371543
BEIS,Met Office,2020-08-27,11 SERVICES,SUPERCOMPUTING,HOGAN LOVELLS INTERNATIONAL LLP,443338,54659.24,GB123371543
BEIS,Met Office,2020-08-27,11 SERVICES,SUPERCOMPUTING,HOGAN LOVELLS INTERNATIONAL LLP,443343,28625.5,GB123371543
BEIS,Met Office,2020-08-27,11 SERVICES,SUPERCOMPUTING,HOGAN LOVELLS INTERNATIONAL LLP,443343,83337.62,GB123371543
BEIS,Met Office,2020-08-27,11 SERVICES,SUPERCOMPUTING,HOGAN LOVELLS INTERNATIONAL LLP,443343,101,GB123371543
BEIS,Met Office,2020-08-27,11 SERVICES,SUPERCOMPUTING,HOGAN LOVELLS INTERNATIONAL LLP,443343,166565.84,GB123371543
BEIS,Met Office,2020-08-27,11 SERVICES,SUPERCOMPUTING,HOGAN LOVELLS INTERNATIONAL LLP,443370,443.66,GB123371543
BEIS,Met Office,2020-08-27,11 SERVICES,SUPERCOMPUTING,HOGAN LOVELLS INTERNATIONAL LLP,443370,13242.9,GB123371543
BEIS,Met Office,2020-08-27,11 SERVICES,SUPERCOMPUTING,HOGAN LOVELLS INTERNATIONAL LLP,444978,0.81,GB123371543
BEIS,Met Office,2020-08-27,11 SERVICES,SUPERCOMPUTING,HOGAN LOVELLS INTERNATIONAL LLP,444978,39660,GB123371543
BEIS,Met Office,2020-08-27,11 SERVICES,SUPERCOMPUTING,HOGAN LOVELLS INTERNATIONAL LLP,444979,9530.21,GB123371543
BEIS,Met Office,2020-08-27,11 SERVICES,CHIEF FINANCIAL OFFICER,MITIE SECURITY LTD,445249,10263.36,416706654
BEIS,Met Office,2020-08-27,11 SERVICES,CHIEF FINANCIAL OFFICER,MITIE SECURITY LTD,445250,20526.35,416706654
BEIS,Met Office,2020-08-27,11 SERVICES,OPERATIONS,SOFTWIRE TECHNOLOGY LIMITED,445506,2520,752 1253 57
BEIS,Met Office,2020-08-27,06 ACCOMMODATION,CHIEF FINANCIAL OFFICER,POWER NI ENERGY LTD,445547,116.37,617518142
BEIS,Met Office,2020-08-27,07 EQUIPMENT,OPERATIONS,ROHDE & SCHWARZ UK LTD,445689,5209.88,215945163
BEIS,Met Office,2020-08-27,06 ACCOMMODATION,CHIEF FINANCIAL OFFICER,CBRE MANAGED SERVICES LTD,445756,22239.08,853936883
BEIS,Met Office,2020-08-27,PLANT AND EQUIPMENT,CHIEF FINANCIAL OFFICER,CBRE MANAGED SERVICES LTD,445757,21428.87,853936883
BEIS,Met Office,2020-08-27,06 ACCOMMODATION,CHIEF FINANCIAL OFFICER,CBRE MANAGED SERVICES LTD,445758,141871.1,853936883
BEIS,Met Office,2020-08-27,11 SERVICES,GOVERNMENT SERVICES,CENTRO INTERNACIONAL MEJORAMIENTO DE MAIZ Y T,445836,43213,CIM890330FI8
BEIS,Met Office,2020-08-27,03 STAFF COSTS T&S,CHIEF FINANCIAL OFFICER,ENTERPRISE RENT A CAR UK LTD,445837,598.94,215557314
BEIS,Met Office,2020-08-27,11 SERVICES,CHIEF FINANCIAL OFFICER,ALLSTAR BUSINESS SOLUTIONS LTD,445838,1531.19,747880191
BEIS,Met Office,2020-08-27,11 SERVICES,TECHNOLOGY,IBM UNITED KINGDOM LTD,445841,6062.7,107328000
BEIS,Met Office,2020-08-27,11 SERVICES,GOVERNMENT SERVICES,SOCIAL SENSING LTD,445842,2758,-
BEIS,Met Office,2020-08-27,06 ACCOMMODATION,CHIEF FINANCIAL OFFICER,ST MODWEN VENTURES LTD,445843,13.66,975081008
BEIS,Met Office,2020-08-27,04 CONTRACTORS,GOVERNMENT SERVICES,JOBSEEKERS RECRUITMENT SERVICES LTD,445844,275.04,130 1297 14
BEIS,Met Office,2020-08-27,04 CONTRACTORS,GOVERNMENT SERVICES,JOBSEEKERS RECRUITMENT SERVICES LTD,445845,819.39,130 1297 14
BEIS,Met Office,2020-08-27,04 CONTRACTORS,GOVERNMENT SERVICES,JOBSEEKERS RECRUITMENT SERVICES LTD,445846,269.1,130 1297 14
BEIS,Met Office,2020-08-27,04 CONTRACTORS,OPERATIONS,JOBSEEKERS RECRUITMENT SERVICES LTD,445847,523.68,130 1297 14
BEIS,Met Office,2020-08-27,04 CONTRACTORS,GOVERNMENT SERVICES,JOBSEEKERS RECRUITMENT SERVICES LTD,445848,663.78,130 1297 14
BEIS,Met Office,2020-08-27,04 CONTRACTORS,GOVERNMENT SERVICES,JOBSEEKERS RECRUITMENT SERVICES LTD,445849,663.78,130 1297 14
BEIS,Met Office,2020-08-27,06 ACCOMMODATION,CHIEF FINANCIAL OFFICER,THORNLEY WILDLIFE SERVICES,445850,160,N/A
BEIS,Met Office,2020-08-27,06 ACCOMMODATION,CHIEF FINANCIAL OFFICER,SOUTH WEST WATER LTD,445854,1611.07,236873674
BEIS,Met Office,2020-08-27,13 MISCELLANEOUS,CHIEF FINANCIAL OFFICER,CANON UK LTD,445855,949.14,523797128
BEIS,Met Office,2020-08-27,11 SERVICES,TECHNOLOGY,CLOUDREACH EUROPE LIMITED,445858,8761.37,978187168
BEIS,Met Office,2020-08-27,13 MISCELLANEOUS,CHIEF FINANCIAL OFFICER,POSTURITE (UK) LTD,445859,654.1,583565114
BEIS,Met Office,2020-08-27,13 MISCELLANEOUS,CHIEF FINANCIAL OFFICER,POSTURITE (UK) LTD,445860,654.1,583565114
BEIS,Met Office,2020-08-27,13 MISCELLANEOUS,CHIEF FINANCIAL OFFICER,POSTURITE (UK) LTD,445861,63.23,583565114
BEIS,Met Office,2020-08-27,13 MISCELLANEOUS,CHIEF FINANCIAL OFFICER,CANON UK LTD,445862,76.36,523797128
BEIS,Met Office,2020-08-27,13 MISCELLANEOUS,CHIEF FINANCIAL OFFICER,CANON UK LTD,445862,70.76,523797128
BEIS,Met Office,2020-08-27,10 EQUIPMENT MAINTENANCE,OPERATIONS,YOUNG CALIBRATION LIMITED,445863,1440,673900720
BEIS,Met Office,2020-08-27,11 SERVICES,OPERATIONS,YOUNG CALIBRATION LIMITED,445863,10,673900720
BEIS,Met Office,2020-08-27,FIXTURE & FITTINGS,CHIEF FINANCIAL OFFICER,SIGNS EXPRESS (EXETER),445865,5300,631397439
BEIS,Met Office,2020-08-27,FIXTURE & FITTINGS,CHIEF FINANCIAL OFFICER,SIGNS EXPRESS (EXETER),445865,1260,631397439
BEIS,Met Office,2020-08-27,FIXTURE & FITTINGS,CHIEF FINANCIAL OFFICER,SIGNS EXPRESS (EXETER),445865,1400,631397439
BEIS,Met Office,2020-08-27,11 SERVICES,OPERATIONS,CLOUDREACH EUROPE LIMITED,445872,7069.13,978187168
BEIS,Met Office,2020-08-27,11 SERVICES,TECHNOLOGY,CLOUDREACH EUROPE LIMITED,445874,7069.13,978187168
BEIS,Met Office,2020-08-27,06 ACCOMMODATION,CHIEF FINANCIAL OFFICER,BPC ENERGY LTD,445875,583,177265088
BEIS,Met Office,2020-08-27,11 SERVICES,OPERATIONS,APPLIED SATELLITE TECHNOLOGY SYSTEMS LTD,445879,139.89,720108683
BEIS,Met Office,2020-08-27,11 SERVICES,OPERATIONS,APPLIED SATELLITE TECHNOLOGY SYSTEMS LTD,445880,280.98,720108683
BEIS,Met Office,2020-08-27,11 SERVICES,OPERATIONS,APPLIED SATELLITE TECHNOLOGY SYSTEMS LTD,445881,133.28,720108683
BEIS,Met Office,2020-08-27,12 INTERNATIONAL,OPERATIONS,APPLIED SATELLITE TECHNOLOGY SYSTEMS LTD,445882,32,720108683
BEIS,Met Office,2020-08-27,11 SERVICES,OPERATIONS,APPLIED SATELLITE TECHNOLOGY SYSTEMS LTD,445883,10312.7,720108683
BEIS,Met Office,2020-08-27,11 SERVICES,OPERATIONS,APPLIED SATELLITE TECHNOLOGY SYSTEMS LTD,445884,32,720108683
BEIS,Met Office,2020-08-27,11 SERVICES,OPERATIONS,APPLIED SATELLITE TECHNOLOGY SYSTEMS LTD,445885,32,720108683
BEIS,Met Office,2020-08-27,06 ACCOMMODATION,CHIEF FINANCIAL OFFICER,A & J GARDEN SERVICES LTD,445887,144,190817003
BEIS,Met Office,2020-08-27,06 ACCOMMODATION,CHIEF FINANCIAL OFFICER,A & J GARDEN SERVICES LTD,445887,330,190817003
BEIS,Met Office,2020-08-27,06 ACCOMMODATION,CHIEF FINANCIAL OFFICER,A & J GARDEN SERVICES LTD,445887,156,190817003
BEIS,Met Office,2020-08-27,06 ACCOMMODATION,CHIEF FINANCIAL OFFICER,A & J GARDEN SERVICES LTD,445887,200,190817003
BEIS,Met Office,2020-08-27,06 ACCOMMODATION,CHIEF FINANCIAL OFFICER,A & J GARDEN SERVICES LTD,445887,156,190817003
BEIS,Met Office,2020-08-27,06 ACCOMMODATION,CHIEF FINANCIAL OFFICER,A & J GARDEN SERVICES LTD,445887,200,190817003
BEIS,Met Office,2020-08-27,06 ACCOMMODATION,CHIEF FINANCIAL OFFICER,A & J GARDEN SERVICES LTD,445887,200,190817003
BEIS,Met Office,2020-08-27,06 ACCOMMODATION,CHIEF FINANCIAL OFFICER,A & J GARDEN SERVICES LTD,445887,200,190817003
BEIS,Met Office,2020-08-27,06 ACCOMMODATION,CHIEF FINANCIAL OFFICER,A & J GARDEN SERVICES LTD,445887,156,190817003
BEIS,Met Office,2020-08-27,06 ACCOMMODATION,CHIEF FINANCIAL OFFICER,A & J GARDEN SERVICES LTD,445887,200,190817003
BEIS,Met Office,2020-08-27,06 ACCOMMODATION,CHIEF FINANCIAL OFFICER,A & J GARDEN SERVICES LTD,445887,156,190817003
BEIS,Met Office,2020-08-27,06 ACCOMMODATION,CHIEF FINANCIAL OFFICER,A & J GARDEN SERVICES LTD,445887,156,190817003
BEIS,Met Office,2020-08-27,06 ACCOMMODATION,CHIEF FINANCIAL OFFICER,A & J GARDEN SERVICES LTD,445887,110,190817003
BEIS,Met Office,2020-08-27,06 ACCOMMODATION,CHIEF FINANCIAL OFFICER,A & J GARDEN SERVICES LTD,445887,200,190817003
BEIS,Met Office,2020-08-27,06 ACCOMMODATION,CHIEF FINANCIAL OFFICER,A & J GARDEN SERVICES LTD,445887,156,190817003
BEIS,Met Office,2020-08-27,06 ACCOMMODATION,CHIEF FINANCIAL OFFICER,A & J GARDEN SERVICES LTD,445887,200,190817003
BEIS,Met Office,2020-08-27,11 SERVICES,TECHNOLOGY,BAE SYSTEMS APPLIED INTELLIGENCE LIMITED,445891,2250,GB641407169
BEIS,Met Office,2020-08-27,11 SERVICES,GOVERNMENT SERVICES,PAUL WATKISS ASSOCIATES LTD,445892,24212.14,869587641
BEIS,Met Office,2020-08-27,13 MISCELLANEOUS,SCIENCE,University Of Reading,445893,1000,200012659
BEIS,Met Office,2020-08-27,11 SERVICES,CORPORATE,HAWK INCENTIVES LTD,445895,-75,238839422
BEIS,Met Office,2020-08-27,11 SERVICES,CORPORATE,HAWK INCENTIVES LTD,445895,-3.75,238839422
BEIS,Met Office,2020-08-27,03 STAFF COSTS T&S,OPERATIONS,FALKLAND ISLAND COMPANY LTD,445900,700,N/A
BEIS,Met Office,2020-08-27,03 STAFF COSTS T&S,OPERATIONS,FALKLAND ISLAND COMPANY LTD,445902,700,N/A
BEIS,Met Office,2020-08-27,06 ACCOMMODATION,OPERATIONS,LHR BUSINESS SUPPORT CENTRE LTD,445904,50.44,927365404
BEIS,Met Office,2020-08-27,11 SERVICES,TECHNOLOGY,BAE SYSTEMS APPLIED INTELLIGENCE LIMITED,445907,11880,GB641407169
BEIS,Met Office,2020-08-27,07 EQUIPMENT,OPERATIONS,M C ENGINEERING SERVICES,445909,111.4,813172066
BEIS,Met Office,2020-08-27,07 EQUIPMENT,OPERATIONS,M C ENGINEERING SERVICES,445909,84.6,813172066
BEIS,Met Office,2020-08-27,07 EQUIPMENT,OPERATIONS,M C ENGINEERING SERVICES,445909,28,813172066
BEIS,Met Office,2020-08-27,07 EQUIPMENT,OPERATIONS,M C ENGINEERING SERVICES,445909,67.3,813172066
BEIS,Met Office,2020-08-27,07 EQUIPMENT,OPERATIONS,M C ENGINEERING SERVICES,445909,67.3,813172066
BEIS,Met Office,2020-08-27,11 SERVICES,GOVERNMENT SERVICES,RESURGENCE URBAN RESILIENCE TRUST,445910,44707.19,259524184
BEIS,Met Office,2020-08-27,11 SERVICES,GOVERNMENT SERVICES,ULTRA ELECTRONICS LTD NUCLEAR CONTROL SYSTEMS,445911,232304.62,123340754
BEIS,Met Office,2020-08-27,11 SERVICES,CHIEF FINANCIAL OFFICER,APPLE CENTRAL TAXIS,445912,120,449238720
BEIS,Met Office,2020-08-27,13 MISCELLANEOUS,SCIENCE,University Of Reading,445913,333.34,200012659
BEIS,Met Office,2020-08-27,11 SERVICES,GOVERNMENT SERVICES,ULTRA ELECTRONICS LTD NUCLEAR CONTROL SYSTEMS,445914,41459,123340754
BEIS,Met Office,2020-08-27,04 CONTRACTORS,GOVERNMENT SERVICES,HAYS SPECIALIST RECRUITMENT LTD,445940,183.08,773695871
BEIS,Met Office,2020-08-27,04 CONTRACTORS,TECHNOLOGY,HAYS SPECIALIST RECRUITMENT LTD,445941,558.7,773695871
BEIS,Met Office,2020-08-27,04 CONTRACTORS,CORPORATE,HAYS SPECIALIST RECRUITMENT LTD,445942,488.2,773695871
BEIS,Met Office,2020-08-27,04 CONTRACTORS,CORPORATE,HAYS SPECIALIST RECRUITMENT LTD,445943,634.67,773695871
BEIS,Met Office,2020-08-27,04 CONTRACTORS,TECHNOLOGY,HAYS SPECIALIST RECRUITMENT LTD,445944,241.6,773695871
BEIS,Met Office,2020-08-27,11 SERVICES,CORPORATE,BRYERS LLP,445945,205,609635917
BEIS,Met Office,2020-08-27,13 MISCELLANEOUS,CHIEF FINANCIAL OFFICER,POSTURITE (UK) LTD,445946,654.1,583565114
BEIS,Met Office,2020-08-27,07 EQUIPMENT,OPERATIONS,Trinity House,445950,2768.69,243120414
BEIS,Met Office,2020-08-27,13 MISCELLANEOUS,SCIENCE,University Of Reading,445952,562.5,200012659
BEIS,Met Office,2020-08-27,11 SERVICES,CHIEF FINANCIAL OFFICER,XPEDITE SYSTEMS (UK) LTD,445955,100,599016994
BEIS,Met Office,2020-08-27,11 SERVICES,GOVERNMENT SERVICES,DJS RESEARCH LIMITED,445957,9894,775718779
BEIS,Met Office,2020-08-27,06 ACCOMMODATION,CHIEF FINANCIAL OFFICER,A & M COLTHART LTD,445958,4700,939534095
BEIS,Met Office,2020-08-27,08 SOFTWARE LICENCES,CHIEF FINANCIAL OFFICER,CEMAR,445959,90,915042161
BEIS,Met Office,2020-08-27,08 SOFTWARE LICENCES,CHIEF FINANCIAL OFFICER,CEMAR,445960,180,915042161
BEIS,Met Office,2020-08-27,11 SERVICES,GOVERNMENT SERVICES,University Of Leeds,445961,24572,613451470
BEIS,Met Office,2020-08-27,11 SERVICES,GOVERNMENT SERVICES,University Of Leeds,445962,16706,613451470
BEIS,Met Office,2020-08-27,11 SERVICES,GOVERNMENT SERVICES,PAUL WATKISS ASSOCIATES LTD,445963,4000,869587641
BEIS,Met Office,2020-08-27,04 CONTRACTORS,GOVERNMENT SERVICES,HAYS SPECIALIST RECRUITMENT LTD,445964,366.16,773695871
BEIS,Met Office,2020-08-27,10 EQUIPMENT MAINTENANCE,OPERATIONS,YOUNG CALIBRATION LIMITED,445965,1360,673900720
BEIS,Met Office,2020-08-27,11 SERVICES,OPERATIONS,YOUNG CALIBRATION LIMITED,445965,10,673900720
BEIS,Met Office,2020-08-27,11 SERVICES,CORPORATE,HAWK INCENTIVES LTD,445966,4425,238839422
BEIS,Met Office,2020-08-27,11 SERVICES,CORPORATE,HAWK INCENTIVES LTD,445966,221.25,238839422
BEIS,Met Office,2020-08-27,06 ACCOMMODATION,CHIEF FINANCIAL OFFICER,WIRELESS NETWORK DEVELOPMENTS (UK) LTD,445967,299.88,GB277474559
BEIS,Met Office,2020-08-27,03 STAFF COSTS T&S,CHIEF FINANCIAL OFFICER,ENTERPRISE RENT A CAR UK LTD,445970,387.51,215557314
BEIS,Met Office,2020-08-27,03 STAFF COSTS T&S,CHIEF FINANCIAL OFFICER,ENTERPRISE RENT A CAR UK LTD,445971,430.14,215557314
BEIS,Met Office,2020-08-27,11 SERVICES,CHIEF FINANCIAL OFFICER,SURE SOUTH ATLANTIC LTD (ST HELENA),445972,1056.58,30005
BEIS,Met Office,2020-08-27,04 CONTRACTORS,CORPORATE,HAYS SPECIALIST RECRUITMENT LTD,445973,97.64,773695871
BEIS,Met Office,2020-08-27,04 CONTRACTORS,CORPORATE,HAYS SPECIALIST RECRUITMENT LTD,445974,353.95,773695871
BEIS,Met Office,2020-08-27,06 ACCOMMODATION,CHIEF FINANCIAL OFFICER,GRS BUILDING SERVICES SOUTH-WEST,445975,100,-
BEIS,Met Office,2020-08-27,11 SERVICES,CHIEF FINANCIAL OFFICER,Morton Fraser LLP,445976,96,269129336
BEIS,Met Office,2020-08-27,06 ACCOMMODATION,CHIEF FINANCIAL OFFICER,Biffa Waste Services Ltd,445977,97.11,537911627
BEIS,Met Office,2020-08-27,06 ACCOMMODATION,CHIEF FINANCIAL OFFICER,Biffa Waste Services Ltd,445978,378.04,537911627
BEIS,Met Office,2020-08-27,06 ACCOMMODATION,CHIEF FINANCIAL OFFICER,Biffa Waste Services Ltd,445979,563.55,537911627
BEIS,Met Office,2020-08-27,06 ACCOMMODATION,CHIEF FINANCIAL OFFICER,Biffa Waste Services Ltd,445980,61.1,537911627
BEIS,Met Office,2020-08-27,06 ACCOMMODATION,CHIEF FINANCIAL OFFICER,Biffa Waste Services Ltd,445981,540.02,537911627
BEIS,Met Office,2020-08-27,06 ACCOMMODATION,CHIEF FINANCIAL OFFICER,Biffa Waste Services Ltd,445982,66.95,537911627
BEIS,Met Office,2020-08-27,06 ACCOMMODATION,CHIEF FINANCIAL OFFICER,Biffa Waste Services Ltd,445983,99.1,537911627
BEIS,Met Office,2020-08-27,06 ACCOMMODATION,CHIEF FINANCIAL OFFICER,CBRE MANAGED SERVICES LTD,445984,20945.32,853936883
BEIS,Met Office,2020-08-27,06 ACCOMMODATION,CHIEF FINANCIAL OFFICER,CBRE MANAGED SERVICES LTD,445985,20340.22,853936883
BEIS,Met Office,2020-08-27,06 ACCOMMODATION,CHIEF FINANCIAL OFFICER,CBRE MANAGED SERVICES LTD,445986,141826.1,853936883
BEIS,Met Office,2020-08-27,10 EQUIPMENT MAINTENANCE,TECHNOLOGY,COMPUTACENTER (UK) LTD,445988,3033.54,490334648
BEIS,Met Office,2020-08-27,13 MISCELLANEOUS,SCIENCE,DESIGNAMITE LTD,445989,240,817819989
BEIS,Met Office,2020-08-27,04 CONTRACTORS,CHIEF FINANCIAL OFFICER,WA CONSULTANTS LTD,445990,5087.5,876328977
BEIS,Met Office,2020-08-27,04 CONTRACTORS,GOVERNMENT SERVICES,WA CONSULTANTS LTD,445992,1080,876328977
BEIS,Met Office,2020-08-27,04 CONTRACTORS,GOVERNMENT SERVICES,WA CONSULTANTS LTD,445993,1620,876328977
BEIS,Met Office,2020-08-27,04 CONTRACTORS,TECHNOLOGY,QUALSERV CONSULTING LTD,445994,7000,719067718
BEIS,Met Office,2020-08-27,06 ACCOMMODATION,CHIEF FINANCIAL OFFICER,BIDVEST NOONAN UK LTD,445995,387.16,GB847176988
BEIS,Met Office,2020-08-27,11 SERVICES,CORPORATE,HAWK INCENTIVES LTD,445997,2875,238839422
BEIS,Met Office,2020-08-27,11 SERVICES,CORPORATE,HAWK INCENTIVES LTD,445997,143.75,238839422
BEIS,Met Office,2020-08-27,07 EQUIPMENT,TECHNOLOGY,Hewlett Packard Ltd,446003,3308.3,314149679
BEIS,Met Office,2020-08-27,07 EQUIPMENT,TECHNOLOGY,Hewlett Packard Ltd,446004,10888.7,314149679
BEIS,Met Office,2020-08-27,06 ACCOMMODATION,CHIEF FINANCIAL OFFICER,WINGFIELD DIGBY SETTLED ESTATE,446008,2600,723281453
BEIS,Met Office,2020-08-27,INFORMATION TECHNOLOGY,TECHNOLOGY,SPECIALIST COMPUTER CENTRES,446010,366233.93,313651680
BEIS,Met Office,2020-08-27,INFORMATION TECHNOLOGY,TECHNOLOGY,SPECIALIST COMPUTER CENTRES,446010,3329.17,313651680
BEIS,Met Office,2020-08-27,04 CONTRACTORS,GOVERNMENT SERVICES,JOBSEEKERS RECRUITMENT SERVICES LTD,446011,662.3,130 1297 14
BEIS,Met Office,2020-08-27,04 CONTRACTORS,GOVERNMENT SERVICES,JOBSEEKERS RECRUITMENT SERVICES LTD,446012,882.42,130 1297 14
BEIS,Met Office,2020-08-27,04 CONTRACTORS,GOVERNMENT SERVICES,JOBSEEKERS RECRUITMENT SERVICES LTD,446013,662.3,130 1297 14
BEIS,Met Office,2020-08-27,04 CONTRACTORS,GOVERNMENT SERVICES,JOBSEEKERS RECRUITMENT SERVICES LTD,446014,403.65,130 1297 14
BEIS,Met Office,2020-08-27,11 SERVICES,GOVERNMENT SERVICES,University Of Leeds,446015,40000,613451470
BEIS,Met Office,2020-08-27,07 EQUIPMENT,SCIENCE,CRANFIELD AEROSPACE SOLUTIONS LTD,446047,10000,608596509
BEIS,Met Office,2020-08-27,03 STAFF COSTS T&S,OPERATIONS,CARTUS LTD,445866,250,768489458
BEIS,Met Office,2020-08-27,03 STAFF COSTS T&S,OPERATIONS,CARTUS LTD,445869,40.01,768489458
BEIS,Met Office,2020-08-27,03 STAFF COSTS T&S,OPERATIONS,CARTUS LTD,445870,8105,768489458
BEIS,Met Office,2020-08-27,03 STAFF COSTS T&S,OPERATIONS,CARTUS LTD,445916,614.68,768489458
BEIS,Met Office,2020-08-27,06 ACCOMMODATION,CHIEF FINANCIAL OFFICER,REDACTED PERSONAL DATA,445839,160,655585009
BEIS,Met Office,2020-08-27,06 ACCOMMODATION,CHIEF FINANCIAL OFFICER,REDACTED PERSONAL DATA,445839,198,655585009
BEIS,Met Office,2020-08-27,06 ACCOMMODATION,CHIEF FINANCIAL OFFICER,REDACTED PERSONAL DATA,445839,178,655585009
BEIS,Met Office,2020-08-27,06 ACCOMMODATION,CHIEF FINANCIAL OFFICER,REDACTED PERSONAL DATA,445839,146,655585009
BEIS,Met Office,2020-08-27,06 ACCOMMODATION,CHIEF FINANCIAL OFFICER,REDACTED PERSONAL DATA,445839,166,655585009
BEIS,Met Office,2020-08-27,06 ACCOMMODATION,CHIEF FINANCIAL OFFICER,REDACTED PERSONAL DATA,445839,63,655585009
BEIS,Met Office,2020-08-27,06 ACCOMMODATION,CHIEF FINANCIAL OFFICER,REDACTED PERSONAL DATA,445839,164,655585009
BEIS,Met Office,2020-08-27,06 ACCOMMODATION,CHIEF FINANCIAL OFFICER,REDACTED PERSONAL DATA,445839,136,655585009
BEIS,Met Office,2020-08-27,06 ACCOMMODATION,CHIEF FINANCIAL OFFICER,REDACTED PERSONAL DATA,445839,168,655585009
BEIS,Met Office,2020-08-27,11 SERVICES,OPERATIONS,REDACTED PERSONAL DATA,445915,130.24,-
BEIS,Met Office,2020-08-27,06 ACCOMMODATION,CHIEF FINANCIAL OFFICER,REDACTED PERSONAL DATA,445968,343,426523462
BEIS,Met Office,2020-08-27,06 ACCOMMODATION,CHIEF FINANCIAL OFFICER,REDACTED PERSONAL DATA,446016,511,426523462
